{"text_format":"1","workbook":"xlsx","n_sheets":3,"sheets":["DE-FT-15 (Pág 1 de 2)","DE-FT-15 (Pág 2 de 2)","Hoja3"],"not_rendered":{"charts":8,"images":1,"macros":1,"external_links":0,"defined_names":6,"comments":1,"pivot_tables":0},"unopened":[],"bounds":{"document_bytes":16777216,"sheet_cells":100000,"rows_first":2000,"rows_last":500,"rows_between":2000,"halvings":0,"cell_chars":16384,"cell_head_chars":4096},"cells_cut":0,"cells_raw":0,"read":"whole","date_system":"1900"}

{"sheet":"DE-FT-15 (Pág 1 de 2)","index":0,"n_rows":140,"n_cols":57,"rows_kept":140,"cut":false,"hidden":false,"merged":[[14,0,14,1],[14,2,14,18],[15,5,15,9],[15,10,15,12],[5,15,5,18],[1,15,1,18],[4,15,4,18],[28,16,28,18],[30,16,30,18],[29,16,29,18],[12,2,12,18],[7,0,7,18],[1,2,5,14],[8,2,8,9],[8,10,8,11],[8,12,8,14],[9,2,9,14],[8,15,8,16],[8,0,8,1],[1,0,5,1],[10,0,10,1],[9,15,9,16],[9,17,9,18],[10,2,10,18],[139,0,139,18],[67,44,67,56],[68,19,71,30],[68,31,71,43],[68,44,71,56],[54,19,54,30],[54,31,54,43],[54,44,54,56],[55,19,65,30],[55,31,65,43],[55,44,65,56],[137,2,137,9],[138,2,138,9],[127,10,127,18],[134,10,134,18],[135,10,135,18],[137,10,137,18],[138,10,138,18],[135,2,135,9],[73,2,73,9],[74,2,74,9],[77,2,77,9],[92,10,92,18],[76,2,76,9],[39,19,39,25],[79,10,79,18],[79,2,79,9],[28,11,28,15],[29,14,30,15],[29,11,30,13],[35,2,35,9],[36,2,36,9],[34,2,34,9],[29,2,30,4],[29,7,29,8],[29,9,29,10],[30,7,30,8],[30,9,30,10],[39,2,39,13],[72,2,72,9],[69,2,69,9],[67,19,67,30],[51,19,51,25],[51,26,51,37],[67,31,67,43],[51,38,51,49],[47,2,47,13],[51,2,51,13],[41,0,41,1],[70,10,70,18],[69,10,69,18],[126,2,126,9],[126,10,126,18],[127,2,127,9],[134,2,134,9],[80,2,80,9],[80,10,80,18],[78,10,78,18],[82,2,82,9],[82,10,82,18],[125,0,125,18],[83,2,83,9],[83,10,83,18],[84,2,84,9],[84,10,84,18],[85,2,85,9],[85,10,85,18],[86,2,86,9],[86,10,86,18],[91,2,91,9],[91,10,91,18],[92,2,92,9],[32,0,32,18],[34,10,34,18],[35,10,35,18],[24,2,24,8],[16,16,16,18],[18,0,18,18],[20,9,20,11],[21,9,21,11],[15,0,15,1],[21,2,21,8],[19,2,19,8],[23,2,23,8],[19,9,19,11],[25,0,25,1],[25,2,25,8],[20,0,20,1],[19,0,19,1],[33,0,33,1],[35,0,35,1],[15,13,15,15],[23,0,23,1],[48,0,48,1],[16,13,16,15],[68,2,68,9],[71,2,71,9],[70,2,70,9],[20,12,20,18],[20,2,20,8],[19,12,19,13],[19,14,19,18],[22,2,22,8],[16,5,16,9],[16,10,16,12],[54,8,54,18],[55,0,65,18],[46,0,46,1],[50,0,50,1],[49,0,49,1],[33,2,33,18],[52,0,52,1],[47,0,47,1],[51,0,51,1],[28,7,28,10],[34,0,34,1],[21,0,21,1],[9,0,9,1],[11,0,11,1],[2,15,3,18],[11,2,11,18],[72,10,72,18],[43,0,43,1],[44,0,44,1],[36,10,36,18],[12,0,12,1],[21,12,21,18],[22,9,22,18],[23,9,25,18],[22,0,22,1],[29,5,30,6],[28,0,30,1],[13,0,13,1],[13,2,13,18],[28,2,28,6],[24,0,24,1],[27,0,27,18],[16,0,16,1],[15,2,15,4],[15,16,15,18],[16,2,16,4],[36,0,36,1],[39,0,40,1],[42,0,42,1],[90,10,90,18],[38,19,38,37],[81,2,81,9],[81,10,81,18],[41,38,41,49],[41,26,41,37],[41,2,41,13],[41,19,41,25],[47,19,47,25],[47,26,47,37],[47,38,47,49],[38,0,38,18],[54,0,54,7],[68,10,68,18],[73,10,73,18],[74,10,74,18],[75,10,75,18],[78,2,78,9],[39,26,39,37],[39,38,39,49],[45,0,45,1],[71,10,71,18],[67,0,67,18],[68,0,68,1],[76,10,76,18],[77,10,77,18],[75,2,75,9],[98,2,98,9],[98,10,98,18],[99,2,99,9],[99,10,99,18],[87,2,87,9],[87,10,87,18],[88,2,88,9],[88,10,88,18],[89,2,89,9],[89,10,89,18],[90,2,90,9],[101,2,101,9],[101,10,101,18],[102,2,102,9],[102,10,102,18],[103,2,103,9],[103,10,103,18],[104,2,104,9],[104,10,104,18],[93,10,93,18],[93,2,93,9],[100,2,100,9],[100,10,100,18],[94,2,94,9],[94,10,94,18],[95,2,95,9],[95,10,95,18],[96,2,96,9],[96,10,96,18],[97,2,97,9],[97,10,97,18],[105,2,105,9],[105,10,105,18],[106,2,106,9],[106,10,106,18],[107,2,107,9],[107,10,107,18],[116,10,116,18],[117,2,117,9],[117,10,117,18],[108,2,108,9],[108,10,108,18],[109,2,109,9],[109,10,109,18],[110,2,110,9],[110,10,110,18],[111,2,111,9],[111,10,111,18],[112,2,112,9],[112,10,112,18],[123,2,123,9],[123,10,123,18],[41,50,41,56],[47,50,47,56],[51,50,51,56],[39,50,39,56],[38,38,38,56],[118,2,118,9],[118,10,118,18],[119,2,119,9],[119,10,119,18],[120,2,120,9],[120,10,120,18],[121,2,121,9],[121,10,121,18],[122,2,122,9],[122,10,122,18],[113,2,113,9],[113,10,113,18],[114,2,114,9],[114,10,114,18],[115,2,115,9],[115,10,115,18],[116,2,116,9],[128,2,128,9],[129,2,129,9],[130,2,130,9],[131,2,131,9],[132,2,132,9],[133,2,133,9],[136,2,136,9],[128,10,128,18],[129,10,129,18],[130,10,130,18],[131,10,131,18],[132,10,132,18],[133,10,133,18],[136,10,136,18]]}
[]
[null,null,"HOJA DE VIDA DEL INDICADOR",null,null,null,null,null,null,null,null,null,null,null,null,"Código: DE-FT-15"]
[null,null,null,null,null,null,null,null,null,null,null,null,null,null,null,"Versión: 9"]
[]
[null,null,null,null,null,null,null,null,null,null,null,null,null,null,null,"Pagina:  1 de 2"]
[null,null,null,null,null,null,null,null,null,null,null,null,null,null,null,"Vigente desde: 01/08/2024"]
[]
["INFORMACIÓN BASICA DEL INDICADOR"]
["PROCESO:",null,null,null,null,null,null,null,null,null,"TIPO DE PROCESO:",null,{"$f":"IF(C9=\"\",\"\",VLOOKUP(C9,Hoja3!A1:B17,2,FALSE))","v":""},null,null,"CÓDIGO DEL INDICADOR:",null,{"$f":"IF(C9=\"\",\"\",CONCATENATE(MID(C9,1,2),\"-IG-\"))","v":""}]
["INSTRUMENTO DE PLANEACIÓN:",null,null,null,null,null,null,null,null,null,null,null,null,null,null,"No. PROYECTO DE INVERSIÓN:"]
["OBJETIVO DEL PROCESO / PROYECTO DE INVERSIÓN / OBJETIVO ESTRATEGICO ASOCIADO:"]
["META ASOCIADA:"]
["NOMBRE DEL INDICADOR:"]
["PROPOSITO DEL INDICADOR:"]
["ACLARACIONES PARA LA ADECUADA MEDICIÓN DEL INDICADOR:"]
["TIPO DE INDICADOR:",null,null,null,null,"FRECUENCIA DE ALIMENTACIÓN Y ANÁLISIS:",null,null,null,null,null,null,null,"VIGENCIA",null,null,{"$f":"IF($C$10=\"\",\"\",IF(OR($C$10=\"Plan Estratégico Institucional PEI\",$C$10=\"Proyecto de Inversión\"),\"Cuatrienal\",\"Anual\"))","v":""}]
["FECHA DE CREACIÓN (dd/mm/aaaa)",null,"2024-01-01",null,null,"FECHA DE REPORTE (dd/mm/aaaa)",null,null,null,null,null,null,null,"PERIODO A REPORTAR"]
[]
["INFORMACIÓN PARA EL CALCULO DEL INDICADOR"]
["TIPO DE FÓRMULA:",null,null,null,null,null,null,null,null,"UNIDAD DE MEDIDA DEL INDICADOR:",null,null,null,null,"Capacitaciones realizadas"]
["VARIABLE 1:",null,null,null,null,null,null,null,null,"FUENTES DE DATOS VARIABLE 1:"]
[{"$f":"IF(C20=\"Sumatoria_de_Una_Variable\",\"NO DILIGENCIAR ESTA CASILLA ----------->\",\"VARIABLE 2:\")","v":"VARIABLE 2:"},null,null,null,null,null,null,null,null,{"$f":"IF(C20=\"Sumatoria_de_Una_Variable\",\"NO DILIGENCIAR ESTA CASILLA ------------------->\",\"FUENTES DE DATOS VARIABLE 2:\")","v":"FUENTES DE DATOS VARIABLE 2:"}]
["TENDENCIA DEL INDICADOR:",null,null,null,null,null,null,null,null,"FÓRMULA DE CÁLCULO:"]
["LÍNEA BASE:",null,null,null,null,null,null,null,null,{"$f":"IF(OR(C20=\"\",C21=\"\"),\"\",\nIF(C20=\"Sumatoria_de_Dos_Variables\",CONCATENATE(\"∑ ( \",C21,\" + \",C22,\" )\"),\nIF(AND(C20=\"División_de_Variables\",M20=\"Porcentaje\"),CONCATENATE(C21,\" \n------------------------------------------------------------------------------------------------------- * 100\n \",C22),\nIF(AND(C20=\"División_de_Variables\",M20<>\"Porcentaje\"),CONCATENATE(C21,\" \n-------------------------------------------------------------------------------------------------------\n \",C22),\nIF(C20=\"Sumatoria_de_Una_Variable\",CONCATENATE(\"∑ ( \",C21,\" )\",\nIF(C20=\"Tasa de Variación\",CONCATENATE(\"( \",C21,\" f  -  \",C21,\" i )\",\"\n------------------------------------------------------------------------------------------------------- * 100\n\",C21,\" i\"),\"\")))))))","v":""}]
["CÁLCULO DE VALORES ACUMULADOS:"]
[{"$f":"CONCATENATE(\"VALOR PROGRAMADO \",UPPER($Q$16),\":\")","v":"VALOR PROGRAMADO :"},null,{"$f":"IF(OR($C$20=\"\",$C$25=\"\",$Q$16=\"\"),\"\",\nIF(AND($C$20=\"Sumatoria_de_Una_Variable\",$C$25=\"No Aplica\"),\"No Aplica\",\nIF(AND($C$20=\"Sumatoria_de_Una_Variable\",$C$25=\"Si Aplica\"),IF($Q$16=\"Cuatrienal\",SUM(C43:BE43),SUM(C43:N43)),\nIF(AND($C$20=\"División_de_Variables\",$C$25=\"No Aplica\"),\"No Aplica\",\nIF(AND($C$20=\"División_de_Variables\",$C$25=\"Si Aplica\"),IF($Q$16=\"Cuatrienal\",IFERROR(AVERAGE(C43:BE43),0),IFERROR(AVERAGE(C43:N43),0)),\nIF(AND($C$20=\"Sumatoria_de_Dos_Variables\",$C$25=\"No Aplica\"),\"No Aplica\",\nIF(AND($C$20=\"Sumatoria_de_Dos_Variables\",$C$25=\"Si Aplica\"),IF($Q$16=\"Cuatrienal\",SUM(C43:BE43),SUM(C43:N43)),\nIF(AND($C$20=\"Tasa de Variación\",$C$25=\"No Aplica\"),\"No Aplica\",\nIF(AND($C$20=\"Tasa de Variación\",$C$20=\"Si Aplica\"),IF($Q$16=\"Cuatrienal\",SUM(C43:BE43),SUM(C43:N43)))))))))))","v":""}]
[]
["RANGOS DE CUMPLIMIENTO"]
["LÍMITES DE CUMPLIMIENTO DEL INDICADOR:",null,"SATISFACTORIO",null,null,null,null,"ACEPTABLE",null,null,null,"INSATISFACTORIO",null,null,null,null,"SOBRE-EJECUCIÓN AUTORIZADA"]
[null,null,null,null,null,null,null,{"$f":"IF(OR($C$30=\"Mayor A:\",$C$30=\"Menor A:\"),\"Desde (>=):\",\nIF(OR($C$30=\"Mayor o Igual A:\",$C$30=\"Menor o Igual A:\"),\"Desde (>):\",\nIF($C$30=\"Igual A:\",\"No Aplica\",\nIF($C$30=\"\",\"\"))))","v":""},null,{"$f":"IF(F30>O30,O30,\nIF(F30<O30,F30,\nIF(F30=O30,\"No Aplica\",\"\")))","v":"No Aplica"},null,{"$f":"IF($C$30=\"Mayor A:\",\"Menor A:\",\nIF($C$30=\"Menor A:\",\"Mayor A:\",\nIF($C$30=\"Mayor o Igual A:\",\"Menor o Igual A:\",\nIF($C$30=\"Menor o Igual A:\",\"Mayor o Igual A:\",\nIF($C$30=\"Igual A:\",\"Igual A:\",\nIF($C$30=\"\",\"\"))))))","v":""},null,null,null,null,"El % de cumplimiento no debe superar el:"]
[null,null,null,null,null,null,null,{"$f":"IF(OR($C$30=\"Mayor A:\",$C$30=\"Menor A:\"),\"Hasta (<=):\",\nIF(OR($C$30=\"Mayor o Igual A:\",$C$30=\"Menor o Igual A:\"),\"Hasta (<):\",\nIF($C$30=\"Igual A:\",\"No Aplica\",\nIF($C$30=\"\",\"\"))))","v":""},null,{"$f":"IF(F30>O30,F30,\nIF(F30<O30,O30,\nIF(F30=O30,\"No Aplica\",\"\")))","v":"No Aplica"}]
[]
["RESPONSABLES"]
["DEPENDENCIA:"]
[null,null,"NOMBRES Y APELLIDOS",null,null,null,null,null,null,null,"CARGO O VINCULO LABORAL"]
["RESPONSABLE DEL PROCESO:"]
["RESPONSABLE DE LA ALIMENTACIÓN Y ANALISIS AL INTERIOR DEL PROCESO:"]
[]
["SEGUIMIENTO AL INDICADOR",null,null,null,null,null,null,null,null,null,null,null,null,null,null,null,null,null,null,"SEGUIMIENTO AL INDICADOR",null,null,null,null,null,null,null,null,null,null,null,null,null,null,null,null,null,null,"SEGUIMIENTO AL INDICADOR"]
[null,null,{"$f":"IF($C$17=\"\",\"\",CONCATENATE(\"PERÍODO - AÑO \",YEAR($C$17)))","v":"PERÍODO - AÑO 2024"},null,null,null,null,null,null,null,null,null,null,null,null,null,null,null,null,{"$f":"IF($C$17=\"\",\"\",CONCATENATE(\"PERÍODO - AÑO \",YEAR($C$17)+1))","v":"PERÍODO - AÑO 2025"},null,null,null,null,null,null,{"$f":"IF($C$17=\"\",\"\",CONCATENATE(\"PERÍODO - AÑO \",YEAR($C$17)+2))","v":"PERÍODO - AÑO 2026"},null,null,null,null,null,null,null,null,null,null,null,{"$f":"IF($C$17=\"\",\"\",CONCATENATE(\"PERÍODO - AÑO \",YEAR($C$17)+3))","v":"PERÍODO - AÑO 2027"},null,null,null,null,null,null,null,null,null,null,null,{"$f":"IF($C$17=\"\",\"\",CONCATENATE(\"PERÍODO - AÑO \",YEAR($C$17)+4))","v":"PERÍODO - AÑO 2028"}]
[null,null,"Ene","Feb","Mar","Abr","May","Jun","Jul","Ago","Sep","Oct","Nov","Dic","Ene","Feb","Mar","Abr","May","Jun","Jul","Ago","Sep","Oct","Nov","Dic","Ene","Feb","Mar","Abr","May","Jun","Jul","Ago","Sep","Oct","Nov","Dic","Ene","Feb","Mar","Abr","May","Jun","Jul","Ago","Sep","Oct","Nov","Dic","Ene","Feb","Mar","Abr","May","Jun","Jul"]
["VALOR MENSUAL",null,null,null,null,null,null,null,null,null,null,null,null,null,null,null,null,null,null,"VALOR MENSUAL",null,null,null,null,null,null,"VALOR MENSUAL",null,null,null,null,null,null,null,null,null,null,null,"VALOR MENSUAL",null,null,null,null,null,null,null,null,null,null,null,{"$f":"AM42","v":"VALOR MENSUAL"}]
[{"$f":"IF($M$20=\"Porcentaje\",\"PORCENTAJE PROGRAMADO\",\nIF($M$20=\"Número de\",IF($O$20=\"\",\"CANTIDAD PROGRAMADA\",CONCATENATE(UPPER($O$20),\" PROGRAMADOS\")),\nIF($M$20=\"Pesos ($)\",\"VALOR O PESOS PROGRAMADOS\",\nIF($M$20=\"Otra\",CONCATENATE(UPPER($O$20),\" PROGRAMADOS\"),\"PROGRAMADO\"))))","v":"PROGRAMADO"}]
[{"$f":"IF($C$21=\"\",\"VARIABLE 1\",UPPER($C$21))","v":"VARIABLE 1"}]
[{"$f":"IF(OR($C$20=\"Sumatoria_de_Dos_Variables\",$C$20=\"División_de_Variables\"),IF($C$22=\"\",\"VARIABLE 2\",UPPER($C$22)),\"NO DILIGENCIAR ESTAS CASILLAS ------->\")","v":"NO DILIGENCIAR ESTAS CASILLAS ------->"}]
[{"$f":"IF($M$20=\"Porcentaje\",\"PORCENTAJE EJECUTADO\",\nIF($M$20=\"Número de\",IF($O$20=\"\",\"CANTIDAD EJECUTADA\",CONCATENATE(UPPER($O$20),\" EJECUTADOS\")),\nIF($M$20=\"Pesos ($)\",\"VALOR O PESOS EJECUTADOS\",\nIF($M$20=\"Otra\",CONCATENATE(UPPER($O$20),\" EJECUTADOS\"),\"EJECUTADO\"))))","v":"EJECUTADO"},null,{"$f":"IF($C$20=\"\",\"\",\nIF($C$20=\"Sumatoria_de_Una_Variable\",IF(C44=0,0,C44),\nIF(AND($C$20=\"División_de_Variables\",$M$20=\"Porcentaje\"),IF(OR(C44=0,C45=0),0,ROUNDDOWN(C44/C45*100,1)),\nIF(AND($C$20=\"División_de_Variables\",$M$20<>\"Porcentaje\"),IF(OR(C44=0,C45=0),0,ROUNDDOWN(C44/C45,1)),\nIF($C$20=\"Sumatoria_de_Dos_Variables\",C44+C45,\nIF($C$20=\"Tasa de Variación\",IF(C44=0,0,(0-C44)/C44)))))))","v":""},{"$f":"IF($C$20=\"\",\"\",\nIF($C$20=\"Sumatoria_de_Una_Variable\",IF(D44=0,0,D44),\nIF(AND($C$20=\"División_de_Variables\",$M$20=\"Porcentaje\"),IF(OR(D44=0,D45=0),0,ROUNDDOWN(D44/D45*100,1)),\nIF(AND($C$20=\"División_de_Variables\",$M$20<>\"Porcentaje\"),IF(OR(D44=0,D45=0),0,ROUNDDOWN(D44/D45,1)),\nIF($C$20=\"Sumatoria_de_Dos_Variables\",D44+D45,\nIF($C$20=\"Tasa de Variación\",IF(D44=0,0,(D44-C44)/C44)))))))","v":""},{"$f":"IF($C$20=\"\",\"\",\nIF($C$20=\"Sumatoria_de_Una_Variable\",IF(E44=0,0,E44),\nIF(AND($C$20=\"División_de_Variables\",$M$20=\"Porcentaje\"),IF(OR(E44=0,E45=0),0,ROUNDDOWN(E44/E45*100,1)),\nIF(AND($C$20=\"División_de_Variables\",$M$20<>\"Porcentaje\"),IF(OR(E44=0,E45=0),0,ROUNDDOWN(E44/E45,1)),\nIF($C$20=\"Sumatoria_de_Dos_Variables\",E44+E45,\nIF($C$20=\"Tasa de Variación\",IF(E44=0,0,(E44-D44)/D44)))))))","v":""},{"$f":"IF($C$20=\"\",\"\",\nIF($C$20=\"Sumatoria_de_Una_Variable\",IF(F44=0,0,F44),\nIF(AND($C$20=\"División_de_Variables\",$M$20=\"Porcentaje\"),IF(OR(F44=0,F45=0),0,ROUNDDOWN(F44/F45*100,1)),\nIF(AND($C$20=\"División_de_Variables\",$M$20<>\"Porcentaje\"),IF(OR(F44=0,F45=0),0,ROUNDDOWN(F44/F45,1)),\nIF($C$20=\"Sumatoria_de_Dos_Variables\",F44+F45,\nIF($C$20=\"Tasa de Variación\",IF(F44=0,0,(F44-E44)/E44)))))))","v":""},"","","","","","","","",{"$f":"IF($C$20=\"\",\"\",\nIF($C$20=\"Sumatoria_de_Una_Variable\",IF(O44=0,0,O44),\nIF(AND($C$20=\"División_de_Variables\",$M$20=\"Porcentaje\"),IF(OR(O44=0,O45=0),0,ROUNDDOWN(O44/O45*100,1)),\nIF(AND($C$20=\"División_de_Variables\",$M$20<>\"Porcentaje\"),IF(OR(O44=0,O45=0),0,ROUNDDOWN(O44/O45,1)),\nIF($C$20=\"Sumatoria_de_Dos_Variables\",O44+O45,\nIF($C$20=\"Tasa de Variación\",IF(O44=0,0,(O44-N44)/N44)))))))","v":""},"","","","","","",{"$f":"IF($C$20=\"\",\"\",\nIF($C$20=\"Sumatoria_de_Una_Variable\",IF(V44=0,0,V44),\nIF(AND($C$20=\"División_de_Variables\",$M$20=\"Porcentaje\"),IF(OR(V44=0,V45=0),0,ROUNDDOWN(V44/V45*100,1)),\nIF(AND($C$20=\"División_de_Variables\",$M$20<>\"Porcentaje\"),IF(OR(V44=0,V45=0),0,ROUNDDOWN(V44/V45,1)),\nIF($C$20=\"Sumatoria_de_Dos_Variables\",V44+V45,\nIF($C$20=\"Tasa de Variación\",IF(V44=0,0,(V44-U44)/U44)))))))","v":""},"","","","","","","","","","","","","","","","","","","","","","","","","","","","","","","","","","",""]
["PORCENTAJE DE CUMPLIMIENTO MENSUAL",null,{"$f":"IF($C$20=\"\",\"\",\nIF($C$20=\"Sumatoria_de_Una_Variable\",IF(C46=0,0,IFERROR(C46/C43,0)),\nIF(AND($C$20=\"División_de_Variables\",$M$20=\"Porcentaje\"),IF($C$23=\"Decreciente\",IF(C46=0,0,IFERROR(C43/C46,0)),IF(C46=0,0,IFERROR(C46/C43,0))),\nIF(AND($C$20=\"División_de_Variables\",$M$20<>\"Porcentaje\"),IF($C$23=\"Decreciente\",IF(C46=0,0,IFERROR(C43/C46,0)),IF(C46=0,0,IFERROR(C46/C43,0))),\nIF($C$20=\"Sumatoria_de_Dos_Variables\",IF(C46=0,0,IFERROR(C46/C43,0)),\nIF($C$20=\"Tasa de Variación\",IF(C46=0,0,C46/C43)))))))","v":""},{"$f":"IF($C$20=\"\",\"\",\nIF($C$20=\"Sumatoria_de_Una_Variable\",IF(D46=0,0,IFERROR(D46/D43,0)),\nIF(AND($C$20=\"División_de_Variables\",$M$20=\"Porcentaje\"),IF($C$23=\"Decreciente\",IF(D46=0,0,IFERROR(D43/D46,0)),IF(D46=0,0,IFERROR(D46/D43,0))),\nIF(AND($C$20=\"División_de_Variables\",$M$20<>\"Porcentaje\"),IF($C$23=\"Decreciente\",IF(D46=0,0,IFERROR(D43/D46,0)),IF(D46=0,0,IFERROR(D46/D43,0))),\nIF($C$20=\"Sumatoria_de_Dos_Variables\",IF(D46=0,0,IFERROR(D46/D43,0)),\nIF($C$20=\"Tasa de Variación\",IF(D46=0,0,D46/D43)))))))","v":""},{"$f":"IF($C$20=\"\",\"\",\nIF($C$20=\"Sumatoria_de_Una_Variable\",IF(E46=0,0,IFERROR(E46/E43,0)),\nIF(AND($C$20=\"División_de_Variables\",$M$20=\"Porcentaje\"),IF($C$23=\"Decreciente\",IF(E46=0,0,IFERROR(E43/E46,0)),IF(E46=0,0,IFERROR(E46/E43,0))),\nIF(AND($C$20=\"División_de_Variables\",$M$20<>\"Porcentaje\"),IF($C$23=\"Decreciente\",IF(E46=0,0,IFERROR(E43/E46,0)),IF(E46=0,0,IFERROR(E46/E43,0))),\nIF($C$20=\"Sumatoria_de_Dos_Variables\",IF(E46=0,0,IFERROR(E46/E43,0)),\nIF($C$20=\"Tasa de Variación\",IF(E46=0,0,E46/E43)))))))","v":""},"","","","","","","","",{"$f":"IF($C$20=\"\",\"\",\nIF($C$20=\"Sumatoria_de_Una_Variable\",IF(N46=0,0,IFERROR(N46/N43,0)),\nIF(AND($C$20=\"División_de_Variables\",$M$20=\"Porcentaje\"),IF($C$23=\"Decreciente\",IF(N46=0,0,IFERROR(N43/N46,0)),IF(N46=0,0,IFERROR(N46/N43,0))),\nIF(AND($C$20=\"División_de_Variables\",$M$20<>\"Porcentaje\"),IF($C$23=\"Decreciente\",IF(N46=0,0,IFERROR(N43/N46,0)),IF(N46=0,0,IFERROR(N46/N43,0))),\nIF($C$20=\"Sumatoria_de_Dos_Variables\",IF(N46=0,0,IFERROR(N46/N43,0)),\nIF($C$20=\"Tasa de Variación\",IF(N46=0,0,N46/N43)))))))","v":""},"","","","","","","","",{"$f":"IF($C$20=\"\",\"\",\nIF($C$20=\"Sumatoria_de_Una_Variable\",IF(W46=0,0,IFERROR(W46/W43,0)),\nIF(AND($C$20=\"División_de_Variables\",$M$20=\"Porcentaje\"),IF($C$23=\"Decreciente\",IF(W46=0,0,IFERROR(W43/W46,0)),IF(W46=0,0,IFERROR(W46/W43,0))),\nIF(AND($C$20=\"División_de_Variables\",$M$20<>\"Porcentaje\"),IF($C$23=\"Decreciente\",IF(W46=0,0,IFERROR(W43/W46,0)),IF(W46=0,0,IFERROR(W46/W43,0))),\nIF($C$20=\"Sumatoria_de_Dos_Variables\",IF(W46=0,0,IFERROR(W46/W43,0)),\nIF($C$20=\"Tasa de Variación\",IF(W46=0,0,W46/W43)))))))","v":""},"","","","","","","","","","","","","","","","","","","","","","","","","","","","","","","","","",""]
[{"$f":"CONCATENATE(\"VALOR ACUMULADO \",UPPER($Q$16))","v":"VALOR ACUMULADO "},null,null,null,null,null,null,null,null,null,null,null,null,null,null,null,null,null,null,{"$f":"A48","v":"VALOR ACUMULADO "},null,null,null,null,null,null,{"$f":"T48","v":"VALOR ACUMULADO "},null,null,null,null,null,null,null,null,null,null,null,{"$f":"AA48","v":"VALOR ACUMULADO "},null,null,null,null,null,null,null,null,null,null,null,{"$f":"AM48","v":"VALOR ACUMULADO "}]
["PROGRAMACIÓN ACUMULADA",null,{"$f":"IF($C$25=\"Si Aplica\",IF(OR($C$20=\"Sumatoria_de_Una_Variable\",$C$20=\"Sumatoria_de_Dos_Variables\"),IF(AND(C44=0,C45=0,OR(C43=\"\",C43=0)),0,SUM($C$43)),\nIF($C$25=\"Si Aplica\",IF($C$20=\"División_de_Variables\",IF(OR(C43=\"\",C43=0),0,ROUNDDOWN(AVERAGE($C$43),1)),0))),0)","v":0},{"$f":"IF($C$25=\"Si Aplica\",IF(OR($C$20=\"Sumatoria_de_Una_Variable\",$C$20=\"Sumatoria_de_Dos_Variables\"),IF(AND(D44=0,D45=0,OR(D43=\"\",D43=0)),0,SUM($C$43:D43)),\nIF($C$25=\"Si Aplica\",IF($C$20=\"División_de_Variables\",IF(OR(D43=\"\",D43=0),0,ROUNDDOWN(AVERAGE($C$43:D43),1)),0))),0)","v":0},{"$f":"IF($C$25=\"Si Aplica\",IF(OR($C$20=\"Sumatoria_de_Una_Variable\",$C$20=\"Sumatoria_de_Dos_Variables\"),IF(AND(E44=0,E45=0,OR(E43=\"\",E43=0)),0,SUM($C$43:E43)),\nIF($C$25=\"Si Aplica\",IF($C$20=\"División_de_Variables\",IF(OR(E43=\"\",E43=0),0,ROUNDDOWN(AVERAGE($C$43:E43),1)),0))),0)","v":0},{"$f":"IF($C$25=\"Si Aplica\",IF(OR($C$20=\"Sumatoria_de_Una_Variable\",$C$20=\"Sumatoria_de_Dos_Variables\"),IF(AND(F44=0,F45=0,OR(F43=\"\",F43=0)),0,SUM($C$43:F43)),\nIF($C$25=\"Si Aplica\",IF($C$20=\"División_de_Variables\",IF(OR(F43=\"\",F43=0),0,ROUNDDOWN(AVERAGE($C$43:F43),1)),0))),0)","v":0},{"$f":"IF($C$25=\"Si Aplica\",IF(OR($C$20=\"Sumatoria_de_Una_Variable\",$C$20=\"Sumatoria_de_Dos_Variables\"),IF(AND(G44=0,G45=0,OR(G43=\"\",G43=0)),0,SUM($C$43:G43)),\nIF($C$25=\"Si Aplica\",IF($C$20=\"División_de_Variables\",IF(OR(G43=\"\",G43=0),0,ROUNDDOWN(AVERAGE($C$43:G43),1)),0))),0)","v":0},{"$f":"IF($C$25=\"Si Aplica\",IF(OR($C$20=\"Sumatoria_de_Una_Variable\",$C$20=\"Sumatoria_de_Dos_Variables\"),IF(AND(H44=0,H45=0,OR(H43=\"\",H43=0)),0,SUM($C$43:H43)),\nIF($C$25=\"Si Aplica\",IF($C$20=\"División_de_Variables\",IF(OR(H43=\"\",H43=0),0,ROUNDDOWN(AVERAGE($C$43:H43),1)),0))),0)","v":0},{"$f":"IF($C$25=\"Si Aplica\",IF(OR($C$20=\"Sumatoria_de_Una_Variable\",$C$20=\"Sumatoria_de_Dos_Variables\"),IF(AND(I44=0,I45=0,OR(I43=\"\",I43=0)),0,SUM($C$43:I43)),\nIF($C$25=\"Si Aplica\",IF($C$20=\"División_de_Variables\",IF(OR(I43=\"\",I43=0),0,ROUNDDOWN(AVERAGE($C$43:I43),1)),0))),0)","v":0},{"$f":"IF($C$25=\"Si Aplica\",IF(OR($C$20=\"Sumatoria_de_Una_Variable\",$C$20=\"Sumatoria_de_Dos_Variables\"),IF(AND(J44=0,J45=0,OR(J43=\"\",J43=0)),0,SUM($C$43:J43)),\nIF($C$25=\"Si Aplica\",IF($C$20=\"División_de_Variables\",IF(OR(J43=\"\",J43=0),0,ROUNDDOWN(AVERAGE($C$43:J43),1)),0))),0)","v":0},{"$f":"IF($C$25=\"Si Aplica\",IF(OR($C$20=\"Sumatoria_de_Una_Variable\",$C$20=\"Sumatoria_de_Dos_Variables\"),IF(AND(K44=0,K45=0,OR(K43=\"\",K43=0)),0,SUM($C$43:K43)),\nIF($C$25=\"Si Aplica\",IF($C$20=\"División_de_Variables\",IF(OR(K43=\"\",K43=0),0,ROUNDDOWN(AVERAGE($C$43:K43),1)),0))),0)","v":0},{"$f":"IF($C$25=\"Si Aplica\",IF(OR($C$20=\"Sumatoria_de_Una_Variable\",$C$20=\"Sumatoria_de_Dos_Variables\"),IF(AND(L44=0,L45=0,OR(L43=\"\",L43=0)),0,SUM($C$43:L43)),\nIF($C$25=\"Si Aplica\",IF($C$20=\"División_de_Variables\",IF(OR(L43=\"\",L43=0),0,ROUNDDOWN(AVERAGE($C$43:L43),1)),0))),0)","v":0},{"$f":"IF($C$25=\"Si Aplica\",IF(OR($C$20=\"Sumatoria_de_Una_Variable\",$C$20=\"Sumatoria_de_Dos_Variables\"),IF(AND(M44=0,M45=0,OR(M43=\"\",M43=0)),0,SUM($C$43:M43)),\nIF($C$25=\"Si Aplica\",IF($C$20=\"División_de_Variables\",IF(OR(M43=\"\",M43=0),0,ROUNDDOWN(AVERAGE($C$43:M43),1)),0))),0)","v":0},{"$f":"IF($C$25=\"Si Aplica\",IF(OR($C$20=\"Sumatoria_de_Una_Variable\",$C$20=\"Sumatoria_de_Dos_Variables\"),IF(AND(N44=0,N45=0,OR(N43=\"\",N43=0)),0,SUM($C$43:N43)),\nIF($C$25=\"Si Aplica\",IF($C$20=\"División_de_Variables\",IF(OR(N43=\"\",N43=0),0,ROUNDDOWN(AVERAGE($C$43:N43),1)),0))),0)","v":0},{"$f":"IF($C$25=\"Si Aplica\",IF(OR($C$20=\"Sumatoria_de_Una_Variable\",$C$20=\"Sumatoria_de_Dos_Variables\"),IF(AND(O44=0,O45=0,OR(O43=\"\",O43=0)),0,SUM($C$43:O43)),\nIF($C$25=\"Si Aplica\",IF($C$20=\"División_de_Variables\",IF(OR(O43=\"\",O43=0),0,ROUNDDOWN(AVERAGE($C$43:O43),1)),0))),0)","v":0},{"$f":"IF($C$25=\"Si Aplica\",IF(OR($C$20=\"Sumatoria_de_Una_Variable\",$C$20=\"Sumatoria_de_Dos_Variables\"),IF(AND(P44=0,P45=0,OR(P43=\"\",P43=0)),0,SUM($C$43:P43)),\nIF($C$25=\"Si Aplica\",IF($C$20=\"División_de_Variables\",IF(OR(P43=\"\",P43=0),0,ROUNDDOWN(AVERAGE($C$43:P43),1)),0))),0)","v":0},{"$f":"IF($C$25=\"Si Aplica\",IF(OR($C$20=\"Sumatoria_de_Una_Variable\",$C$20=\"Sumatoria_de_Dos_Variables\"),IF(AND(Q44=0,Q45=0,OR(Q43=\"\",Q43=0)),0,SUM($C$43:Q43)),\nIF($C$25=\"Si Aplica\",IF($C$20=\"División_de_Variables\",IF(OR(Q43=\"\",Q43=0),0,ROUNDDOWN(AVERAGE($C$43:Q43),1)),0))),0)","v":0},{"$f":"IF($C$25=\"Si Aplica\",IF(OR($C$20=\"Sumatoria_de_Una_Variable\",$C$20=\"Sumatoria_de_Dos_Variables\"),IF(AND(R44=0,R45=0,OR(R43=\"\",R43=0)),0,SUM($C$43:R43)),\nIF($C$25=\"Si Aplica\",IF($C$20=\"División_de_Variables\",IF(OR(R43=\"\",R43=0),0,ROUNDDOWN(AVERAGE($C$43:R43),1)),0))),0)","v":0},{"$f":"IF($C$25=\"Si Aplica\",IF(OR($C$20=\"Sumatoria_de_Una_Variable\",$C$20=\"Sumatoria_de_Dos_Variables\"),IF(AND(S44=0,S45=0,OR(S43=\"\",S43=0)),0,SUM($C$43:S43)),\nIF($C$25=\"Si Aplica\",IF($C$20=\"División_de_Variables\",IF(OR(S43=\"\",S43=0),0,ROUNDDOWN(AVERAGE($C$43:S43),1)),0))),0)","v":0},{"$f":"IF($C$25=\"Si Aplica\",IF(OR($C$20=\"Sumatoria_de_Una_Variable\",$C$20=\"Sumatoria_de_Dos_Variables\"),IF(AND(T44=0,T45=0,OR(T43=\"\",T43=0)),0,SUM($C$43:T43)),\nIF($C$25=\"Si Aplica\",IF($C$20=\"División_de_Variables\",IF(OR(T43=\"\",T43=0),0,ROUNDDOWN(AVERAGE($C$43:T43),1)),0))),0)","v":0},{"$f":"IF($C$25=\"Si Aplica\",IF(OR($C$20=\"Sumatoria_de_Una_Variable\",$C$20=\"Sumatoria_de_Dos_Variables\"),IF(AND(U44=0,U45=0,OR(U43=\"\",U43=0)),0,SUM($C$43:U43)),\nIF($C$25=\"Si Aplica\",IF($C$20=\"División_de_Variables\",IF(OR(U43=\"\",U43=0),0,ROUNDDOWN(AVERAGE($C$43:U43),1)),0))),0)","v":0},{"$f":"IF($C$25=\"Si Aplica\",IF(OR($C$20=\"Sumatoria_de_Una_Variable\",$C$20=\"Sumatoria_de_Dos_Variables\"),IF(AND(V44=0,V45=0,OR(V43=\"\",V43=0)),0,SUM($C$43:V43)),\nIF($C$25=\"Si Aplica\",IF($C$20=\"División_de_Variables\",IF(OR(V43=\"\",V43=0),0,ROUNDDOWN(AVERAGE($C$43:V43),1)),0))),0)","v":0},{"$f":"IF($C$25=\"Si Aplica\",IF(OR($C$20=\"Sumatoria_de_Una_Variable\",$C$20=\"Sumatoria_de_Dos_Variables\"),IF(AND(W44=0,W45=0,OR(W43=\"\",W43=0)),0,SUM($C$43:W43)),\nIF($C$25=\"Si Aplica\",IF($C$20=\"División_de_Variables\",IF(OR(W43=\"\",W43=0),0,ROUNDDOWN(AVERAGE($C$43:W43),1)),0))),0)","v":0},{"$f":"IF($C$25=\"Si Aplica\",IF(OR($C$20=\"Sumatoria_de_Una_Variable\",$C$20=\"Sumatoria_de_Dos_Variables\"),IF(AND(X44=0,X45=0,OR(X43=\"\",X43=0)),0,SUM($C$43:X43)),\nIF($C$25=\"Si Aplica\",IF($C$20=\"División_de_Variables\",IF(OR(X43=\"\",X43=0),0,ROUNDDOWN(AVERAGE($C$43:X43),1)),0))),0)","v":0},{"$f":"IF($C$25=\"Si Aplica\",IF(OR($C$20=\"Sumatoria_de_Una_Variable\",$C$20=\"Sumatoria_de_Dos_Variables\"),IF(AND(Y44=0,Y45=0,OR(Y43=\"\",Y43=0)),0,SUM($C$43:Y43)),\nIF($C$25=\"Si Aplica\",IF($C$20=\"División_de_Variables\",IF(OR(Y43=\"\",Y43=0),0,ROUNDDOWN(AVERAGE($C$43:Y43),1)),0))),0)","v":0},{"$f":"IF($C$25=\"Si Aplica\",IF(OR($C$20=\"Sumatoria_de_Una_Variable\",$C$20=\"Sumatoria_de_Dos_Variables\"),IF(AND(Z44=0,Z45=0,OR(Z43=\"\",Z43=0)),0,SUM($C$43:Z43)),\nIF($C$25=\"Si Aplica\",IF($C$20=\"División_de_Variables\",IF(OR(Z43=\"\",Z43=0),0,ROUNDDOWN(AVERAGE($C$43:Z43),1)),0))),0)","v":0},{"$f":"IF($C$25=\"Si Aplica\",IF(OR($C$20=\"Sumatoria_de_Una_Variable\",$C$20=\"Sumatoria_de_Dos_Variables\"),IF(AND(AA44=0,AA45=0,OR(AA43=\"\",AA43=0)),0,SUM($C$43:AA43)),\nIF($C$25=\"Si Aplica\",IF($C$20=\"División_de_Variables\",IF(OR(AA43=\"\",AA43=0),0,ROUNDDOWN(AVERAGE($C$43:AA43),1)),0))),0)","v":0},{"$f":"IF($C$25=\"Si Aplica\",IF(OR($C$20=\"Sumatoria_de_Una_Variable\",$C$20=\"Sumatoria_de_Dos_Variables\"),IF(AND(AB44=0,AB45=0,OR(AB43=\"\",AB43=0)),0,SUM($C$43:AB43)),\nIF($C$25=\"Si Aplica\",IF($C$20=\"División_de_Variables\",IF(OR(AB43=\"\",AB43=0),0,ROUNDDOWN(AVERAGE($C$43:AB43),1)),0))),0)","v":0},{"$f":"IF($C$25=\"Si Aplica\",IF(OR($C$20=\"Sumatoria_de_Una_Variable\",$C$20=\"Sumatoria_de_Dos_Variables\"),IF(AND(AC44=0,AC45=0,OR(AC43=\"\",AC43=0)),0,SUM($C$43:AC43)),\nIF($C$25=\"Si Aplica\",IF($C$20=\"División_de_Variables\",IF(OR(AC43=\"\",AC43=0),0,ROUNDDOWN(AVERAGE($C$43:AC43),1)),0))),0)","v":0},{"$f":"IF($C$25=\"Si Aplica\",IF(OR($C$20=\"Sumatoria_de_Una_Variable\",$C$20=\"Sumatoria_de_Dos_Variables\"),IF(AND(AD44=0,AD45=0,OR(AD43=\"\",AD43=0)),0,SUM($C$43:AD43)),\nIF($C$25=\"Si Aplica\",IF($C$20=\"División_de_Variables\",IF(OR(AD43=\"\",AD43=0),0,ROUNDDOWN(AVERAGE($C$43:AD43),1)),0))),0)","v":0},{"$f":"IF($C$25=\"Si Aplica\",IF(OR($C$20=\"Sumatoria_de_Una_Variable\",$C$20=\"Sumatoria_de_Dos_Variables\"),IF(AND(AE44=0,AE45=0,OR(AE43=\"\",AE43=0)),0,SUM($C$43:AE43)),\nIF($C$25=\"Si Aplica\",IF($C$20=\"División_de_Variables\",IF(OR(AE43=\"\",AE43=0),0,ROUNDDOWN(AVERAGE($C$43:AE43),1)),0))),0)","v":0},{"$f":"IF($C$25=\"Si Aplica\",IF(OR($C$20=\"Sumatoria_de_Una_Variable\",$C$20=\"Sumatoria_de_Dos_Variables\"),IF(AND(AF44=0,AF45=0,OR(AF43=\"\",AF43=0)),0,SUM($C$43:AF43)),\nIF($C$25=\"Si Aplica\",IF($C$20=\"División_de_Variables\",IF(OR(AF43=\"\",AF43=0),0,ROUNDDOWN(AVERAGE($C$43:AF43),1)),0))),0)","v":0},{"$f":"IF($C$25=\"Si Aplica\",IF(OR($C$20=\"Sumatoria_de_Una_Variable\",$C$20=\"Sumatoria_de_Dos_Variables\"),IF(AND(AG44=0,AG45=0,OR(AG43=\"\",AG43=0)),0,SUM($C$43:AG43)),\nIF($C$25=\"Si Aplica\",IF($C$20=\"División_de_Variables\",IF(OR(AG43=\"\",AG43=0),0,ROUNDDOWN(AVERAGE($C$43:AG43),1)),0))),0)","v":0},{"$f":"IF($C$25=\"Si Aplica\",IF(OR($C$20=\"Sumatoria_de_Una_Variable\",$C$20=\"Sumatoria_de_Dos_Variables\"),IF(AND(AH44=0,AH45=0,OR(AH43=\"\",AH43=0)),0,SUM($C$43:AH43)),\nIF($C$25=\"Si Aplica\",IF($C$20=\"División_de_Variables\",IF(OR(AH43=\"\",AH43=0),0,ROUNDDOWN(AVERAGE($C$43:AH43),1)),0))),0)","v":0},{"$f":"IF($C$25=\"Si Aplica\",IF(OR($C$20=\"Sumatoria_de_Una_Variable\",$C$20=\"Sumatoria_de_Dos_Variables\"),IF(AND(AI44=0,AI45=0,OR(AI43=\"\",AI43=0)),0,SUM($C$43:AI43)),\nIF($C$25=\"Si Aplica\",IF($C$20=\"División_de_Variables\",IF(OR(AI43=\"\",AI43=0),0,ROUNDDOWN(AVERAGE($C$43:AI43),1)),0))),0)","v":0},{"$f":"IF($C$25=\"Si Aplica\",IF(OR($C$20=\"Sumatoria_de_Una_Variable\",$C$20=\"Sumatoria_de_Dos_Variables\"),IF(AND(AJ44=0,AJ45=0,OR(AJ43=\"\",AJ43=0)),0,SUM($C$43:AJ43)),\nIF($C$25=\"Si Aplica\",IF($C$20=\"División_de_Variables\",IF(OR(AJ43=\"\",AJ43=0),0,ROUNDDOWN(AVERAGE($C$43:AJ43),1)),0))),0)","v":0},{"$f":"IF($C$25=\"Si Aplica\",IF(OR($C$20=\"Sumatoria_de_Una_Variable\",$C$20=\"Sumatoria_de_Dos_Variables\"),IF(AND(AK44=0,AK45=0,OR(AK43=\"\",AK43=0)),0,SUM($C$43:AK43)),\nIF($C$25=\"Si Aplica\",IF($C$20=\"División_de_Variables\",IF(OR(AK43=\"\",AK43=0),0,ROUNDDOWN(AVERAGE($C$43:AK43),1)),0))),0)","v":0},{"$f":"IF($C$25=\"Si Aplica\",IF(OR($C$20=\"Sumatoria_de_Una_Variable\",$C$20=\"Sumatoria_de_Dos_Variables\"),IF(AND(AL44=0,AL45=0,OR(AL43=\"\",AL43=0)),0,SUM($C$43:AL43)),\nIF($C$25=\"Si Aplica\",IF($C$20=\"División_de_Variables\",IF(OR(AL43=\"\",AL43=0),0,ROUNDDOWN(AVERAGE($C$43:AL43),1)),0))),0)","v":0},{"$f":"IF($C$25=\"Si Aplica\",IF(OR($C$20=\"Sumatoria_de_Una_Variable\",$C$20=\"Sumatoria_de_Dos_Variables\"),IF(AND(AM44=0,AM45=0,OR(AM43=\"\",AM43=0)),0,SUM($C$43:AM43)),\nIF($C$25=\"Si Aplica\",IF($C$20=\"División_de_Variables\",IF(OR(AM43=\"\",AM43=0),0,ROUNDDOWN(AVERAGE($C$43:AM43),1)),0))),0)","v":0},{"$f":"IF($C$25=\"Si Aplica\",IF(OR($C$20=\"Sumatoria_de_Una_Variable\",$C$20=\"Sumatoria_de_Dos_Variables\"),IF(AND(AN44=0,AN45=0,OR(AN43=\"\",AN43=0)),0,SUM($C$43:AN43)),\nIF($C$25=\"Si Aplica\",IF($C$20=\"División_de_Variables\",IF(OR(AN43=\"\",AN43=0),0,ROUNDDOWN(AVERAGE($C$43:AN43),1)),0))),0)","v":0},{"$f":"IF($C$25=\"Si Aplica\",IF(OR($C$20=\"Sumatoria_de_Una_Variable\",$C$20=\"Sumatoria_de_Dos_Variables\"),IF(AND(AO44=0,AO45=0,OR(AO43=\"\",AO43=0)),0,SUM($C$43:AO43)),\nIF($C$25=\"Si Aplica\",IF($C$20=\"División_de_Variables\",IF(OR(AO43=\"\",AO43=0),0,ROUNDDOWN(AVERAGE($C$43:AO43),1)),0))),0)","v":0},{"$f":"IF($C$25=\"Si Aplica\",IF(OR($C$20=\"Sumatoria_de_Una_Variable\",$C$20=\"Sumatoria_de_Dos_Variables\"),IF(AND(AP44=0,AP45=0,OR(AP43=\"\",AP43=0)),0,SUM($C$43:AP43)),\nIF($C$25=\"Si Aplica\",IF($C$20=\"División_de_Variables\",IF(OR(AP43=\"\",AP43=0),0,ROUNDDOWN(AVERAGE($C$43:AP43),1)),0))),0)","v":0},{"$f":"IF($C$25=\"Si Aplica\",IF(OR($C$20=\"Sumatoria_de_Una_Variable\",$C$20=\"Sumatoria_de_Dos_Variables\"),IF(AND(AQ44=0,AQ45=0,OR(AQ43=\"\",AQ43=0)),0,SUM($C$43:AQ43)),\nIF($C$25=\"Si Aplica\",IF($C$20=\"División_de_Variables\",IF(OR(AQ43=\"\",AQ43=0),0,ROUNDDOWN(AVERAGE($C$43:AQ43),1)),0))),0)","v":0},{"$f":"IF($C$25=\"Si Aplica\",IF(OR($C$20=\"Sumatoria_de_Una_Variable\",$C$20=\"Sumatoria_de_Dos_Variables\"),IF(AND(AR44=0,AR45=0,OR(AR43=\"\",AR43=0)),0,SUM($C$43:AR43)),\nIF($C$25=\"Si Aplica\",IF($C$20=\"División_de_Variables\",IF(OR(AR43=\"\",AR43=0),0,ROUNDDOWN(AVERAGE($C$43:AR43),1)),0))),0)","v":0},{"$f":"IF($C$25=\"Si Aplica\",IF(OR($C$20=\"Sumatoria_de_Una_Variable\",$C$20=\"Sumatoria_de_Dos_Variables\"),IF(AND(AS44=0,AS45=0,OR(AS43=\"\",AS43=0)),0,SUM($C$43:AS43)),\nIF($C$25=\"Si Aplica\",IF($C$20=\"División_de_Variables\",IF(OR(AS43=\"\",AS43=0),0,ROUNDDOWN(AVERAGE($C$43:AS43),1)),0))),0)","v":0},{"$f":"IF($C$25=\"Si Aplica\",IF(OR($C$20=\"Sumatoria_de_Una_Variable\",$C$20=\"Sumatoria_de_Dos_Variables\"),IF(AND(AT44=0,AT45=0,OR(AT43=\"\",AT43=0)),0,SUM($C$43:AT43)),\nIF($C$25=\"Si Aplica\",IF($C$20=\"División_de_Variables\",IF(OR(AT43=\"\",AT43=0),0,ROUNDDOWN(AVERAGE($C$43:AT43),1)),0))),0)","v":0},{"$f":"IF($C$25=\"Si Aplica\",IF(OR($C$20=\"Sumatoria_de_Una_Variable\",$C$20=\"Sumatoria_de_Dos_Variables\"),IF(AND(AU44=0,AU45=0,OR(AU43=\"\",AU43=0)),0,SUM($C$43:AU43)),\nIF($C$25=\"Si Aplica\",IF($C$20=\"División_de_Variables\",IF(OR(AU43=\"\",AU43=0),0,ROUNDDOWN(AVERAGE($C$43:AU43),1)),0))),0)","v":0},{"$f":"IF($C$25=\"Si Aplica\",IF(OR($C$20=\"Sumatoria_de_Una_Variable\",$C$20=\"Sumatoria_de_Dos_Variables\"),IF(AND(AV44=0,AV45=0,OR(AV43=\"\",AV43=0)),0,SUM($C$43:AV43)),\nIF($C$25=\"Si Aplica\",IF($C$20=\"División_de_Variables\",IF(OR(AV43=\"\",AV43=0),0,ROUNDDOWN(AVERAGE($C$43:AV43),1)),0))),0)","v":0},{"$f":"IF($C$25=\"Si Aplica\",IF(OR($C$20=\"Sumatoria_de_Una_Variable\",$C$20=\"Sumatoria_de_Dos_Variables\"),IF(AND(AW44=0,AW45=0,OR(AW43=\"\",AW43=0)),0,SUM($C$43:AW43)),\nIF($C$25=\"Si Aplica\",IF($C$20=\"División_de_Variables\",IF(OR(AW43=\"\",AW43=0),0,ROUNDDOWN(AVERAGE($C$43:AW43),1)),0))),0)","v":0},{"$f":"IF($C$25=\"Si Aplica\",IF(OR($C$20=\"Sumatoria_de_Una_Variable\",$C$20=\"Sumatoria_de_Dos_Variables\"),IF(AND(AX44=0,AX45=0,OR(AX43=\"\",AX43=0)),0,SUM($C$43:AX43)),\nIF($C$25=\"Si Aplica\",IF($C$20=\"División_de_Variables\",IF(OR(AX43=\"\",AX43=0),0,ROUNDDOWN(AVERAGE($C$43:AX43),1)),0))),0)","v":0},{"$f":"IF($C$25=\"Si Aplica\",IF(OR($C$20=\"Sumatoria_de_Una_Variable\",$C$20=\"Sumatoria_de_Dos_Variables\"),IF(AND(AY44=0,AY45=0,OR(AY43=\"\",AY43=0)),0,SUM($C$43:AY43)),\nIF($C$25=\"Si Aplica\",IF($C$20=\"División_de_Variables\",IF(OR(AY43=\"\",AY43=0),0,ROUNDDOWN(AVERAGE($C$43:AY43),1)),0))),0)","v":0},{"$f":"IF($C$25=\"Si Aplica\",IF(OR($C$20=\"Sumatoria_de_Una_Variable\",$C$20=\"Sumatoria_de_Dos_Variables\"),IF(AND(AZ44=0,AZ45=0,OR(AZ43=\"\",AZ43=0)),0,SUM($C$43:AZ43)),\nIF($C$25=\"Si Aplica\",IF($C$20=\"División_de_Variables\",IF(OR(AZ43=\"\",AZ43=0),0,ROUNDDOWN(AVERAGE($C$43:AZ43),1)),0))),0)","v":0},{"$f":"IF($C$25=\"Si Aplica\",IF(OR($C$20=\"Sumatoria_de_Una_Variable\",$C$20=\"Sumatoria_de_Dos_Variables\"),IF(AND(BA44=0,BA45=0,OR(BA43=\"\",BA43=0)),0,SUM($C$43:BA43)),\nIF($C$25=\"Si Aplica\",IF($C$20=\"División_de_Variables\",IF(OR(BA43=\"\",BA43=0),0,ROUNDDOWN(AVERAGE($C$43:BA43),1)),0))),0)","v":0},{"$f":"IF($C$25=\"Si Aplica\",IF(OR($C$20=\"Sumatoria_de_Una_Variable\",$C$20=\"Sumatoria_de_Dos_Variables\"),IF(AND(BB44=0,BB45=0,OR(BB43=\"\",BB43=0)),0,SUM($C$43:BB43)),\nIF($C$25=\"Si Aplica\",IF($C$20=\"División_de_Variables\",IF(OR(BB43=\"\",BB43=0),0,ROUNDDOWN(AVERAGE($C$43:BB43),1)),0))),0)","v":0},{"$f":"IF($C$25=\"Si Aplica\",IF(OR($C$20=\"Sumatoria_de_Una_Variable\",$C$20=\"Sumatoria_de_Dos_Variables\"),IF(AND(BC44=0,BC45=0,OR(BC43=\"\",BC43=0)),0,SUM($C$43:BC43)),\nIF($C$25=\"Si Aplica\",IF($C$20=\"División_de_Variables\",IF(OR(BC43=\"\",BC43=0),0,ROUNDDOWN(AVERAGE($C$43:BC43),1)),0))),0)","v":0},{"$f":"IF($C$25=\"Si Aplica\",IF(OR($C$20=\"Sumatoria_de_Una_Variable\",$C$20=\"Sumatoria_de_Dos_Variables\"),IF(AND(BD44=0,BD45=0,OR(BD43=\"\",BD43=0)),0,SUM($C$43:BD43)),\nIF($C$25=\"Si Aplica\",IF($C$20=\"División_de_Variables\",IF(OR(BD43=\"\",BD43=0),0,ROUNDDOWN(AVERAGE($C$43:BD43),1)),0))),0)","v":0},{"$f":"IF($C$25=\"Si Aplica\",IF(OR($C$20=\"Sumatoria_de_Una_Variable\",$C$20=\"Sumatoria_de_Dos_Variables\"),IF(AND(BE44=0,BE45=0,OR(BE43=\"\",BE43=0)),0,SUM($C$43:BE43)),\nIF($C$25=\"Si Aplica\",IF($C$20=\"División_de_Variables\",IF(OR(BE43=\"\",BE43=0),0,ROUNDDOWN(AVERAGE($C$43:BE43),1)),0))),0)","v":0}]
["EJECUTADO ACUMULADO",null,{"$f":"IF($C$25=\"Si Aplica\",IF(OR($C$20=\"Sumatoria_de_Una_Variable\",$C$20=\"Sumatoria_de_Dos_Variables\"),IF(AND(C44=0,C45=0,OR(C43=\"\",C43=0)),0,SUM($C$46)),\nIF($C$25=\"Si Aplica\",IF($C$20=\"División_de_Variables\",IF(OR(C43=\"\",C43=0),0,ROUNDDOWN(AVERAGE($C$46),1)),0))),0)","v":0},{"$f":"IF($C$25=\"Si Aplica\",IF(OR($C$20=\"Sumatoria_de_Una_Variable\",$C$20=\"Sumatoria_de_Dos_Variables\"),IF(AND(D44=0,D45=0,OR(D43=\"\",D43=0)),0,SUM($C$46:D46)),\nIF($C$25=\"Si Aplica\",IF($C$20=\"División_de_Variables\",IF(OR(D43=\"\",D43=0),0,ROUNDDOWN(AVERAGE($C$46:D46),1)),0))),0)","v":0},{"$f":"IF($C$25=\"Si Aplica\",IF(OR($C$20=\"Sumatoria_de_Una_Variable\",$C$20=\"Sumatoria_de_Dos_Variables\"),IF(AND(E44=0,E45=0,OR(E43=\"\",E43=0)),0,SUM($C$46:E46)),\nIF($C$25=\"Si Aplica\",IF($C$20=\"División_de_Variables\",IF(OR(E43=\"\",E43=0),0,ROUNDDOWN(AVERAGE($C$46:E46),1)),0))),0)","v":0},{"$f":"IF($C$25=\"Si Aplica\",IF(OR($C$20=\"Sumatoria_de_Una_Variable\",$C$20=\"Sumatoria_de_Dos_Variables\"),IF(AND(F44=0,F45=0,OR(F43=\"\",F43=0)),0,SUM($C$46:F46)),\nIF($C$25=\"Si Aplica\",IF($C$20=\"División_de_Variables\",IF(OR(F43=\"\",F43=0),0,ROUNDDOWN(AVERAGE($C$46:F46),1)),0))),0)","v":0},{"$f":"IF($C$25=\"Si Aplica\",IF(OR($C$20=\"Sumatoria_de_Una_Variable\",$C$20=\"Sumatoria_de_Dos_Variables\"),IF(AND(G44=0,G45=0,OR(G43=\"\",G43=0)),0,SUM($C$46:G46)),\nIF($C$25=\"Si Aplica\",IF($C$20=\"División_de_Variables\",IF(OR(G43=\"\",G43=0),0,ROUNDDOWN(AVERAGE($C$46:G46),1)),0))),0)","v":0},{"$f":"IF($C$25=\"Si Aplica\",IF(OR($C$20=\"Sumatoria_de_Una_Variable\",$C$20=\"Sumatoria_de_Dos_Variables\"),IF(AND(H44=0,H45=0,OR(H43=\"\",H43=0)),0,SUM($C$46:H46)),\nIF($C$25=\"Si Aplica\",IF($C$20=\"División_de_Variables\",IF(OR(H43=\"\",H43=0),0,ROUNDDOWN(AVERAGE($C$46:H46),1)),0))),0)","v":0},{"$f":"IF($C$25=\"Si Aplica\",IF(OR($C$20=\"Sumatoria_de_Una_Variable\",$C$20=\"Sumatoria_de_Dos_Variables\"),IF(AND(I44=0,I45=0,OR(I43=\"\",I43=0)),0,SUM($C$46:I46)),\nIF($C$25=\"Si Aplica\",IF($C$20=\"División_de_Variables\",IF(OR(I43=\"\",I43=0),0,ROUNDDOWN(AVERAGE($C$46:I46),1)),0))),0)","v":0},{"$f":"IF($C$25=\"Si Aplica\",IF(OR($C$20=\"Sumatoria_de_Una_Variable\",$C$20=\"Sumatoria_de_Dos_Variables\"),IF(AND(J44=0,J45=0,OR(J43=\"\",J43=0)),0,SUM($C$46:J46)),\nIF($C$25=\"Si Aplica\",IF($C$20=\"División_de_Variables\",IF(OR(J43=\"\",J43=0),0,ROUNDDOWN(AVERAGE($C$46:J46),1)),0))),0)","v":0},{"$f":"IF($C$25=\"Si Aplica\",IF(OR($C$20=\"Sumatoria_de_Una_Variable\",$C$20=\"Sumatoria_de_Dos_Variables\"),IF(AND(K44=0,K45=0,OR(K43=\"\",K43=0)),0,SUM($C$46:K46)),\nIF($C$25=\"Si Aplica\",IF($C$20=\"División_de_Variables\",IF(OR(K43=\"\",K43=0),0,ROUNDDOWN(AVERAGE($C$46:K46),1)),0))),0)","v":0},{"$f":"IF($C$25=\"Si Aplica\",IF(OR($C$20=\"Sumatoria_de_Una_Variable\",$C$20=\"Sumatoria_de_Dos_Variables\"),IF(AND(L44=0,L45=0,OR(L43=\"\",L43=0)),0,SUM($C$46:L46)),\nIF($C$25=\"Si Aplica\",IF($C$20=\"División_de_Variables\",IF(OR(L43=\"\",L43=0),0,ROUNDDOWN(AVERAGE($C$46:L46),1)),0))),0)","v":0},{"$f":"IF($C$25=\"Si Aplica\",IF(OR($C$20=\"Sumatoria_de_Una_Variable\",$C$20=\"Sumatoria_de_Dos_Variables\"),IF(AND(M44=0,M45=0,OR(M43=\"\",M43=0)),0,SUM($C$46:M46)),\nIF($C$25=\"Si Aplica\",IF($C$20=\"División_de_Variables\",IF(OR(M43=\"\",M43=0),0,ROUNDDOWN(AVERAGE($C$46:M46),1)),0))),0)","v":0},{"$f":"IF($C$25=\"Si Aplica\",IF(OR($C$20=\"Sumatoria_de_Una_Variable\",$C$20=\"Sumatoria_de_Dos_Variables\"),IF(AND(N44=0,N45=0,OR(N43=\"\",N43=0)),0,SUM($C$46:N46)),\nIF($C$25=\"Si Aplica\",IF($C$20=\"División_de_Variables\",IF(OR(N43=\"\",N43=0),0,ROUNDDOWN(AVERAGE($C$46:N46),1)),0))),0)","v":0},{"$f":"IF($C$25=\"Si Aplica\",IF(OR($C$20=\"Sumatoria_de_Una_Variable\",$C$20=\"Sumatoria_de_Dos_Variables\"),IF(AND(O44=0,O45=0,OR(O43=\"\",O43=0)),0,SUM($C$46:O46)),\nIF($C$25=\"Si Aplica\",IF($C$20=\"División_de_Variables\",IF(OR(O43=\"\",O43=0),0,ROUNDDOWN(AVERAGE($C$46:O46),1)),0))),0)","v":0},{"$f":"IF($C$25=\"Si Aplica\",IF(OR($C$20=\"Sumatoria_de_Una_Variable\",$C$20=\"Sumatoria_de_Dos_Variables\"),IF(AND(P44=0,P45=0,OR(P43=\"\",P43=0)),0,SUM($C$46:P46)),\nIF($C$25=\"Si Aplica\",IF($C$20=\"División_de_Variables\",IF(OR(P43=\"\",P43=0),0,ROUNDDOWN(AVERAGE($C$46:P46),1)),0))),0)","v":0},{"$f":"IF($C$25=\"Si Aplica\",IF(OR($C$20=\"Sumatoria_de_Una_Variable\",$C$20=\"Sumatoria_de_Dos_Variables\"),IF(AND(Q44=0,Q45=0,OR(Q43=\"\",Q43=0)),0,SUM($C$46:Q46)),\nIF($C$25=\"Si Aplica\",IF($C$20=\"División_de_Variables\",IF(OR(Q43=\"\",Q43=0),0,ROUNDDOWN(AVERAGE($C$46:Q46),1)),0))),0)","v":0},{"$f":"IF($C$25=\"Si Aplica\",IF(OR($C$20=\"Sumatoria_de_Una_Variable\",$C$20=\"Sumatoria_de_Dos_Variables\"),IF(AND(R44=0,R45=0,OR(R43=\"\",R43=0)),0,SUM($C$46:R46)),\nIF($C$25=\"Si Aplica\",IF($C$20=\"División_de_Variables\",IF(OR(R43=\"\",R43=0),0,ROUNDDOWN(AVERAGE($C$46:R46),1)),0))),0)","v":0},{"$f":"IF($C$25=\"Si Aplica\",IF(OR($C$20=\"Sumatoria_de_Una_Variable\",$C$20=\"Sumatoria_de_Dos_Variables\"),IF(AND(S44=0,S45=0,OR(S43=\"\",S43=0)),0,SUM($C$46:S46)),\nIF($C$25=\"Si Aplica\",IF($C$20=\"División_de_Variables\",IF(OR(S43=\"\",S43=0),0,ROUNDDOWN(AVERAGE($C$46:S46),1)),0))),0)","v":0},{"$f":"IF($C$25=\"Si Aplica\",IF(OR($C$20=\"Sumatoria_de_Una_Variable\",$C$20=\"Sumatoria_de_Dos_Variables\"),IF(AND(T44=0,T45=0,OR(T43=\"\",T43=0)),0,SUM($C$46:T46)),\nIF($C$25=\"Si Aplica\",IF($C$20=\"División_de_Variables\",IF(OR(T43=\"\",T43=0),0,ROUNDDOWN(AVERAGE($C$46:T46),1)),0))),0)","v":0},{"$f":"IF($C$25=\"Si Aplica\",IF(OR($C$20=\"Sumatoria_de_Una_Variable\",$C$20=\"Sumatoria_de_Dos_Variables\"),IF(AND(U44=0,U45=0,OR(U43=\"\",U43=0)),0,SUM($C$46:U46)),\nIF($C$25=\"Si Aplica\",IF($C$20=\"División_de_Variables\",IF(OR(U43=\"\",U43=0),0,ROUNDDOWN(AVERAGE($C$46:U46),1)),0))),0)","v":0},{"$f":"IF($C$25=\"Si Aplica\",IF(OR($C$20=\"Sumatoria_de_Una_Variable\",$C$20=\"Sumatoria_de_Dos_Variables\"),IF(AND(V44=0,V45=0,OR(V43=\"\",V43=0)),0,SUM($C$46:V46)),\nIF($C$25=\"Si Aplica\",IF($C$20=\"División_de_Variables\",IF(OR(V43=\"\",V43=0),0,ROUNDDOWN(AVERAGE($C$46:V46),1)),0))),0)","v":0},{"$f":"IF($C$25=\"Si Aplica\",IF(OR($C$20=\"Sumatoria_de_Una_Variable\",$C$20=\"Sumatoria_de_Dos_Variables\"),IF(AND(W44=0,W45=0,OR(W43=\"\",W43=0)),0,SUM($C$46:W46)),\nIF($C$25=\"Si Aplica\",IF($C$20=\"División_de_Variables\",IF(OR(W43=\"\",W43=0),0,ROUNDDOWN(AVERAGE($C$46:W46),1)),0))),0)","v":0},{"$f":"IF($C$25=\"Si Aplica\",IF(OR($C$20=\"Sumatoria_de_Una_Variable\",$C$20=\"Sumatoria_de_Dos_Variables\"),IF(AND(X44=0,X45=0,OR(X43=\"\",X43=0)),0,SUM($C$46:X46)),\nIF($C$25=\"Si Aplica\",IF($C$20=\"División_de_Variables\",IF(OR(X43=\"\",X43=0),0,ROUNDDOWN(AVERAGE($C$46:X46),1)),0))),0)","v":0},{"$f":"IF($C$25=\"Si Aplica\",IF(OR($C$20=\"Sumatoria_de_Una_Variable\",$C$20=\"Sumatoria_de_Dos_Variables\"),IF(AND(Y44=0,Y45=0,OR(Y43=\"\",Y43=0)),0,SUM($C$46:Y46)),\nIF($C$25=\"Si Aplica\",IF($C$20=\"División_de_Variables\",IF(OR(Y43=\"\",Y43=0),0,ROUNDDOWN(AVERAGE($C$46:Y46),1)),0))),0)","v":0},{"$f":"IF($C$25=\"Si Aplica\",IF(OR($C$20=\"Sumatoria_de_Una_Variable\",$C$20=\"Sumatoria_de_Dos_Variables\"),IF(AND(Z44=0,Z45=0,OR(Z43=\"\",Z43=0)),0,SUM($C$46:Z46)),\nIF($C$25=\"Si Aplica\",IF($C$20=\"División_de_Variables\",IF(OR(Z43=\"\",Z43=0),0,ROUNDDOWN(AVERAGE($C$46:Z46),1)),0))),0)","v":0},{"$f":"IF($C$25=\"Si Aplica\",IF(OR($C$20=\"Sumatoria_de_Una_Variable\",$C$20=\"Sumatoria_de_Dos_Variables\"),IF(AND(AA44=0,AA45=0,OR(AA43=\"\",AA43=0)),0,SUM($C$46:AA46)),\nIF($C$25=\"Si Aplica\",IF($C$20=\"División_de_Variables\",IF(OR(AA43=\"\",AA43=0),0,ROUNDDOWN(AVERAGE($C$46:AA46),1)),0))),0)","v":0},{"$f":"IF($C$25=\"Si Aplica\",IF(OR($C$20=\"Sumatoria_de_Una_Variable\",$C$20=\"Sumatoria_de_Dos_Variables\"),IF(AND(AB44=0,AB45=0,OR(AB43=\"\",AB43=0)),0,SUM($C$46:AB46)),\nIF($C$25=\"Si Aplica\",IF($C$20=\"División_de_Variables\",IF(OR(AB43=\"\",AB43=0),0,ROUNDDOWN(AVERAGE($C$46:AB46),1)),0))),0)","v":0},{"$f":"IF($C$25=\"Si Aplica\",IF(OR($C$20=\"Sumatoria_de_Una_Variable\",$C$20=\"Sumatoria_de_Dos_Variables\"),IF(AND(AC44=0,AC45=0,OR(AC43=\"\",AC43=0)),0,SUM($C$46:AC46)),\nIF($C$25=\"Si Aplica\",IF($C$20=\"División_de_Variables\",IF(OR(AC43=\"\",AC43=0),0,ROUNDDOWN(AVERAGE($C$46:AC46),1)),0))),0)","v":0},{"$f":"IF($C$25=\"Si Aplica\",IF(OR($C$20=\"Sumatoria_de_Una_Variable\",$C$20=\"Sumatoria_de_Dos_Variables\"),IF(AND(AD44=0,AD45=0,OR(AD43=\"\",AD43=0)),0,SUM($C$46:AD46)),\nIF($C$25=\"Si Aplica\",IF($C$20=\"División_de_Variables\",IF(OR(AD43=\"\",AD43=0),0,ROUNDDOWN(AVERAGE($C$46:AD46),1)),0))),0)","v":0},{"$f":"IF($C$25=\"Si Aplica\",IF(OR($C$20=\"Sumatoria_de_Una_Variable\",$C$20=\"Sumatoria_de_Dos_Variables\"),IF(AND(AE44=0,AE45=0,OR(AE43=\"\",AE43=0)),0,SUM($C$46:AE46)),\nIF($C$25=\"Si Aplica\",IF($C$20=\"División_de_Variables\",IF(OR(AE43=\"\",AE43=0),0,ROUNDDOWN(AVERAGE($C$46:AE46),1)),0))),0)","v":0},{"$f":"IF($C$25=\"Si Aplica\",IF(OR($C$20=\"Sumatoria_de_Una_Variable\",$C$20=\"Sumatoria_de_Dos_Variables\"),IF(AND(AF44=0,AF45=0,OR(AF43=\"\",AF43=0)),0,SUM($C$46:AF46)),\nIF($C$25=\"Si Aplica\",IF($C$20=\"División_de_Variables\",IF(OR(AF43=\"\",AF43=0),0,ROUNDDOWN(AVERAGE($C$46:AF46),1)),0))),0)","v":0},{"$f":"IF($C$25=\"Si Aplica\",IF(OR($C$20=\"Sumatoria_de_Una_Variable\",$C$20=\"Sumatoria_de_Dos_Variables\"),IF(AND(AG44=0,AG45=0,OR(AG43=\"\",AG43=0)),0,SUM($C$46:AG46)),\nIF($C$25=\"Si Aplica\",IF($C$20=\"División_de_Variables\",IF(OR(AG43=\"\",AG43=0),0,ROUNDDOWN(AVERAGE($C$46:AG46),1)),0))),0)","v":0},{"$f":"IF($C$25=\"Si Aplica\",IF(OR($C$20=\"Sumatoria_de_Una_Variable\",$C$20=\"Sumatoria_de_Dos_Variables\"),IF(AND(AH44=0,AH45=0,OR(AH43=\"\",AH43=0)),0,SUM($C$46:AH46)),\nIF($C$25=\"Si Aplica\",IF($C$20=\"División_de_Variables\",IF(OR(AH43=\"\",AH43=0),0,ROUNDDOWN(AVERAGE($C$46:AH46),1)),0))),0)","v":0},{"$f":"IF($C$25=\"Si Aplica\",IF(OR($C$20=\"Sumatoria_de_Una_Variable\",$C$20=\"Sumatoria_de_Dos_Variables\"),IF(AND(AI44=0,AI45=0,OR(AI43=\"\",AI43=0)),0,SUM($C$46:AI46)),\nIF($C$25=\"Si Aplica\",IF($C$20=\"División_de_Variables\",IF(OR(AI43=\"\",AI43=0),0,ROUNDDOWN(AVERAGE($C$46:AI46),1)),0))),0)","v":0},{"$f":"IF($C$25=\"Si Aplica\",IF(OR($C$20=\"Sumatoria_de_Una_Variable\",$C$20=\"Sumatoria_de_Dos_Variables\"),IF(AND(AJ44=0,AJ45=0,OR(AJ43=\"\",AJ43=0)),0,SUM($C$46:AJ46)),\nIF($C$25=\"Si Aplica\",IF($C$20=\"División_de_Variables\",IF(OR(AJ43=\"\",AJ43=0),0,ROUNDDOWN(AVERAGE($C$46:AJ46),1)),0))),0)","v":0},{"$f":"IF($C$25=\"Si Aplica\",IF(OR($C$20=\"Sumatoria_de_Una_Variable\",$C$20=\"Sumatoria_de_Dos_Variables\"),IF(AND(AK44=0,AK45=0,OR(AK43=\"\",AK43=0)),0,SUM($C$46:AK46)),\nIF($C$25=\"Si Aplica\",IF($C$20=\"División_de_Variables\",IF(OR(AK43=\"\",AK43=0),0,ROUNDDOWN(AVERAGE($C$46:AK46),1)),0))),0)","v":0},{"$f":"IF($C$25=\"Si Aplica\",IF(OR($C$20=\"Sumatoria_de_Una_Variable\",$C$20=\"Sumatoria_de_Dos_Variables\"),IF(AND(AL44=0,AL45=0,OR(AL43=\"\",AL43=0)),0,SUM($C$46:AL46)),\nIF($C$25=\"Si Aplica\",IF($C$20=\"División_de_Variables\",IF(OR(AL43=\"\",AL43=0),0,ROUNDDOWN(AVERAGE($C$46:AL46),1)),0))),0)","v":0},{"$f":"IF($C$25=\"Si Aplica\",IF(OR($C$20=\"Sumatoria_de_Una_Variable\",$C$20=\"Sumatoria_de_Dos_Variables\"),IF(AND(AM44=0,AM45=0,OR(AM43=\"\",AM43=0)),0,SUM($C$46:AM46)),\nIF($C$25=\"Si Aplica\",IF($C$20=\"División_de_Variables\",IF(OR(AM43=\"\",AM43=0),0,ROUNDDOWN(AVERAGE($C$46:AM46),1)),0))),0)","v":0},{"$f":"IF($C$25=\"Si Aplica\",IF(OR($C$20=\"Sumatoria_de_Una_Variable\",$C$20=\"Sumatoria_de_Dos_Variables\"),IF(AND(AN44=0,AN45=0,OR(AN43=\"\",AN43=0)),0,SUM($C$46:AN46)),\nIF($C$25=\"Si Aplica\",IF($C$20=\"División_de_Variables\",IF(OR(AN43=\"\",AN43=0),0,ROUNDDOWN(AVERAGE($C$46:AN46),1)),0))),0)","v":0},{"$f":"IF($C$25=\"Si Aplica\",IF(OR($C$20=\"Sumatoria_de_Una_Variable\",$C$20=\"Sumatoria_de_Dos_Variables\"),IF(AND(AO44=0,AO45=0,OR(AO43=\"\",AO43=0)),0,SUM($C$46:AO46)),\nIF($C$25=\"Si Aplica\",IF($C$20=\"División_de_Variables\",IF(OR(AO43=\"\",AO43=0),0,ROUNDDOWN(AVERAGE($C$46:AO46),1)),0))),0)","v":0},{"$f":"IF($C$25=\"Si Aplica\",IF(OR($C$20=\"Sumatoria_de_Una_Variable\",$C$20=\"Sumatoria_de_Dos_Variables\"),IF(AND(AP44=0,AP45=0,OR(AP43=\"\",AP43=0)),0,SUM($C$46:AP46)),\nIF($C$25=\"Si Aplica\",IF($C$20=\"División_de_Variables\",IF(OR(AP43=\"\",AP43=0),0,ROUNDDOWN(AVERAGE($C$46:AP46),1)),0))),0)","v":0},{"$f":"IF($C$25=\"Si Aplica\",IF(OR($C$20=\"Sumatoria_de_Una_Variable\",$C$20=\"Sumatoria_de_Dos_Variables\"),IF(AND(AQ44=0,AQ45=0,OR(AQ43=\"\",AQ43=0)),0,SUM($C$46:AQ46)),\nIF($C$25=\"Si Aplica\",IF($C$20=\"División_de_Variables\",IF(OR(AQ43=\"\",AQ43=0),0,ROUNDDOWN(AVERAGE($C$46:AQ46),1)),0))),0)","v":0},{"$f":"IF($C$25=\"Si Aplica\",IF(OR($C$20=\"Sumatoria_de_Una_Variable\",$C$20=\"Sumatoria_de_Dos_Variables\"),IF(AND(AR44=0,AR45=0,OR(AR43=\"\",AR43=0)),0,SUM($C$46:AR46)),\nIF($C$25=\"Si Aplica\",IF($C$20=\"División_de_Variables\",IF(OR(AR43=\"\",AR43=0),0,ROUNDDOWN(AVERAGE($C$46:AR46),1)),0))),0)","v":0},{"$f":"IF($C$25=\"Si Aplica\",IF(OR($C$20=\"Sumatoria_de_Una_Variable\",$C$20=\"Sumatoria_de_Dos_Variables\"),IF(AND(AS44=0,AS45=0,OR(AS43=\"\",AS43=0)),0,SUM($C$46:AS46)),\nIF($C$25=\"Si Aplica\",IF($C$20=\"División_de_Variables\",IF(OR(AS43=\"\",AS43=0),0,ROUNDDOWN(AVERAGE($C$46:AS46),1)),0))),0)","v":0},{"$f":"IF($C$25=\"Si Aplica\",IF(OR($C$20=\"Sumatoria_de_Una_Variable\",$C$20=\"Sumatoria_de_Dos_Variables\"),IF(AND(AT44=0,AT45=0,OR(AT43=\"\",AT43=0)),0,SUM($C$46:AT46)),\nIF($C$25=\"Si Aplica\",IF($C$20=\"División_de_Variables\",IF(OR(AT43=\"\",AT43=0),0,ROUNDDOWN(AVERAGE($C$46:AT46),1)),0))),0)","v":0},{"$f":"IF($C$25=\"Si Aplica\",IF(OR($C$20=\"Sumatoria_de_Una_Variable\",$C$20=\"Sumatoria_de_Dos_Variables\"),IF(AND(AU44=0,AU45=0,OR(AU43=\"\",AU43=0)),0,SUM($C$46:AU46)),\nIF($C$25=\"Si Aplica\",IF($C$20=\"División_de_Variables\",IF(OR(AU43=\"\",AU43=0),0,ROUNDDOWN(AVERAGE($C$46:AU46),1)),0))),0)","v":0},{"$f":"IF($C$25=\"Si Aplica\",IF(OR($C$20=\"Sumatoria_de_Una_Variable\",$C$20=\"Sumatoria_de_Dos_Variables\"),IF(AND(AV44=0,AV45=0,OR(AV43=\"\",AV43=0)),0,SUM($C$46:AV46)),\nIF($C$25=\"Si Aplica\",IF($C$20=\"División_de_Variables\",IF(OR(AV43=\"\",AV43=0),0,ROUNDDOWN(AVERAGE($C$46:AV46),1)),0))),0)","v":0},{"$f":"IF($C$25=\"Si Aplica\",IF(OR($C$20=\"Sumatoria_de_Una_Variable\",$C$20=\"Sumatoria_de_Dos_Variables\"),IF(AND(AW44=0,AW45=0,OR(AW43=\"\",AW43=0)),0,SUM($C$46:AW46)),\nIF($C$25=\"Si Aplica\",IF($C$20=\"División_de_Variables\",IF(OR(AW43=\"\",AW43=0),0,ROUNDDOWN(AVERAGE($C$46:AW46),1)),0))),0)","v":0},{"$f":"IF($C$25=\"Si Aplica\",IF(OR($C$20=\"Sumatoria_de_Una_Variable\",$C$20=\"Sumatoria_de_Dos_Variables\"),IF(AND(AX44=0,AX45=0,OR(AX43=\"\",AX43=0)),0,SUM($C$46:AX46)),\nIF($C$25=\"Si Aplica\",IF($C$20=\"División_de_Variables\",IF(OR(AX43=\"\",AX43=0),0,ROUNDDOWN(AVERAGE($C$46:AX46),1)),0))),0)","v":0},{"$f":"IF($C$25=\"Si Aplica\",IF(OR($C$20=\"Sumatoria_de_Una_Variable\",$C$20=\"Sumatoria_de_Dos_Variables\"),IF(AND(AY44=0,AY45=0,OR(AY43=\"\",AY43=0)),0,SUM($C$46:AY46)),\nIF($C$25=\"Si Aplica\",IF($C$20=\"División_de_Variables\",IF(OR(AY43=\"\",AY43=0),0,ROUNDDOWN(AVERAGE($C$46:AY46),1)),0))),0)","v":0},{"$f":"IF($C$25=\"Si Aplica\",IF(OR($C$20=\"Sumatoria_de_Una_Variable\",$C$20=\"Sumatoria_de_Dos_Variables\"),IF(AND(AZ44=0,AZ45=0,OR(AZ43=\"\",AZ43=0)),0,SUM($C$46:AZ46)),\nIF($C$25=\"Si Aplica\",IF($C$20=\"División_de_Variables\",IF(OR(AZ43=\"\",AZ43=0),0,ROUNDDOWN(AVERAGE($C$46:AZ46),1)),0))),0)","v":0},{"$f":"IF($C$25=\"Si Aplica\",IF(OR($C$20=\"Sumatoria_de_Una_Variable\",$C$20=\"Sumatoria_de_Dos_Variables\"),IF(AND(BA44=0,BA45=0,OR(BA43=\"\",BA43=0)),0,SUM($C$46:BA46)),\nIF($C$25=\"Si Aplica\",IF($C$20=\"División_de_Variables\",IF(OR(BA43=\"\",BA43=0),0,ROUNDDOWN(AVERAGE($C$46:BA46),1)),0))),0)","v":0},{"$f":"IF($C$25=\"Si Aplica\",IF(OR($C$20=\"Sumatoria_de_Una_Variable\",$C$20=\"Sumatoria_de_Dos_Variables\"),IF(AND(BB44=0,BB45=0,OR(BB43=\"\",BB43=0)),0,SUM($C$46:BB46)),\nIF($C$25=\"Si Aplica\",IF($C$20=\"División_de_Variables\",IF(OR(BB43=\"\",BB43=0),0,ROUNDDOWN(AVERAGE($C$46:BB46),1)),0))),0)","v":0},{"$f":"IF($C$25=\"Si Aplica\",IF(OR($C$20=\"Sumatoria_de_Una_Variable\",$C$20=\"Sumatoria_de_Dos_Variables\"),IF(AND(BC44=0,BC45=0,OR(BC43=\"\",BC43=0)),0,SUM($C$46:BC46)),\nIF($C$25=\"Si Aplica\",IF($C$20=\"División_de_Variables\",IF(OR(BC43=\"\",BC43=0),0,ROUNDDOWN(AVERAGE($C$46:BC46),1)),0))),0)","v":0},{"$f":"IF($C$25=\"Si Aplica\",IF(OR($C$20=\"Sumatoria_de_Una_Variable\",$C$20=\"Sumatoria_de_Dos_Variables\"),IF(AND(BD44=0,BD45=0,OR(BD43=\"\",BD43=0)),0,SUM($C$46:BD46)),\nIF($C$25=\"Si Aplica\",IF($C$20=\"División_de_Variables\",IF(OR(BD43=\"\",BD43=0),0,ROUNDDOWN(AVERAGE($C$46:BD46),1)),0))),0)","v":0},{"$f":"IF($C$25=\"Si Aplica\",IF(OR($C$20=\"Sumatoria_de_Una_Variable\",$C$20=\"Sumatoria_de_Dos_Variables\"),IF(AND(BE44=0,BE45=0,OR(BE43=\"\",BE43=0)),0,SUM($C$46:BE46)),\nIF($C$25=\"Si Aplica\",IF($C$20=\"División_de_Variables\",IF(OR(BE43=\"\",BE43=0),0,ROUNDDOWN(AVERAGE($C$46:BE46),1)),0))),0)","v":0}]
["PORCENTAJE DE CUMPLIMIENTO ACUMULADO",null,{"$f":"IF(AND($C$20=\"División_de_Variables\",$C$23=\"Decreciente\"),IF(C50=0,0,IFERROR(C49/C50,0)),IF(C50=0,0,IFERROR(C50/C49,0)))","v":0},{"$f":"IF(AND($C$20=\"División_de_Variables\",$C$23=\"Decreciente\"),IF(D50=0,0,IFERROR(D49/D50,0)),IF(D50=0,0,IFERROR(D50/D49,0)))","v":0},{"$f":"IF(AND($C$20=\"División_de_Variables\",$C$23=\"Decreciente\"),IF(E50=0,0,IFERROR(E49/E50,0)),IF(E50=0,0,IFERROR(E50/E49,0)))","v":0},0,{"$f":"IF(AND($C$20=\"División_de_Variables\",$C$23=\"Decreciente\"),IF(G50=0,0,IFERROR(G49/G50,0)),IF(G50=0,0,IFERROR(G50/G49,0)))","v":0},{"$f":"IF(AND($C$20=\"División_de_Variables\",$C$23=\"Decreciente\"),IF(H50=0,0,IFERROR(H49/H50,0)),IF(H50=0,0,IFERROR(H50/H49,0)))","v":0},{"$f":"IF(AND($C$20=\"División_de_Variables\",$C$23=\"Decreciente\"),IF(I50=0,0,IFERROR(I49/I50,0)),IF(I50=0,0,IFERROR(I50/I49,0)))","v":0},{"$f":"IF(AND($C$20=\"División_de_Variables\",$C$23=\"Decreciente\"),IF(J50=0,0,IFERROR(J49/J50,0)),IF(J50=0,0,IFERROR(J50/J49,0)))","v":0},{"$f":"IF(AND($C$20=\"División_de_Variables\",$C$23=\"Decreciente\"),IF(K50=0,0,IFERROR(K49/K50,0)),IF(K50=0,0,IFERROR(K50/K49,0)))","v":0},{"$f":"IF(AND($C$20=\"División_de_Variables\",$C$23=\"Decreciente\"),IF(L50=0,0,IFERROR(L49/L50,0)),IF(L50=0,0,IFERROR(L50/L49,0)))","v":0},{"$f":"IF(AND($C$20=\"División_de_Variables\",$C$23=\"Decreciente\"),IF(M50=0,0,IFERROR(M49/M50,0)),IF(M50=0,0,IFERROR(M50/M49,0)))","v":0},{"$f":"IF(AND($C$20=\"División_de_Variables\",$C$23=\"Decreciente\"),IF(N50=0,0,IFERROR(N49/N50,0)),IF(N50=0,0,IFERROR(N50/N49,0)))","v":0},{"$f":"IF(AND($C$20=\"División_de_Variables\",$C$23=\"Decreciente\"),IF(O50=0,0,IFERROR(O49/O50,0)),IF(O50=0,0,IFERROR(O50/O49,0)))","v":0},0,0,0,0,0,0,0,{"$f":"IF(AND($C$20=\"División_de_Variables\",$C$23=\"Decreciente\"),IF(W50=0,0,IFERROR(W49/W50,0)),IF(W50=0,0,IFERROR(W50/W49,0)))","v":0},0,0,0,0,0,0,0,0,0,0,0,0,0,0,0,0,0,0,0,0,0,0,0,0,0,0,0,0,0,0,0,0,0,0]
[{"$f":"CONCATENATE(\"VALOR \",UPPER($Q$16))","v":"VALOR "},null,null,null,null,null,null,null,null,null,null,null,null,null,null,null,null,null,null,{"$f":"A52","v":"VALOR "},null,null,null,null,null,null,{"$f":"T52","v":"VALOR "},null,null,null,null,null,null,null,null,null,null,null,{"$f":"AA52","v":"VALOR "},null,null,null,null,null,null,null,null,null,null,null,{"$f":"AM52","v":"VALOR "}]
[{"$f":"CONCATENATE(\"PORCENTAJE DE CUMPLIMIENTO \",UPPER($Q$16))","v":"PORCENTAJE DE CUMPLIMIENTO "},null,{"$f":"IFERROR(IF(OR($C$26=\"\",$C$26=0,$C$26=\"No Aplica\"),0,\nIF(AND(C44=0,C45=0,OR(C43=\"\",C43=0)),0,\nIF($C$20=\"División_de_Variables\",0,C46/$C$26))),\"\")","v":0},{"$f":"IFERROR(IF(OR($C$26=\"\",$C$26=0,$C$26=\"No Aplica\"),0,\nIF(AND(D44=0,D45=0,OR(D43=\"\",D43=0)),0,\nIF($C$20=\"División_de_Variables\",0,SUM($C$46:D46)/$C$26))),\"\")","v":0},{"$f":"IFERROR(IF(OR($C$26=\"\",$C$26=0,$C$26=\"No Aplica\"),0,\nIF(AND(E44=0,E45=0,OR(E43=\"\",E43=0)),0,\nIF($C$20=\"División_de_Variables\",0,SUM($C$46:E46)/$C$26))),\"\")","v":0},{"$f":"IFERROR(IF(OR($C$26=\"\",$C$26=0,$C$26=\"No Aplica\"),0,\nIF(AND(F44=0,F45=0,OR(F43=\"\",F43=0)),0,\nIF($C$20=\"División_de_Variables\",0,SUM($C$46:F46)/$C$26))),\"\")","v":0},{"$f":"IFERROR(IF(OR($C$26=\"\",$C$26=0,$C$26=\"No Aplica\"),0,\nIF(AND(G44=0,G45=0,OR(G43=\"\",G43=0)),0,\nIF($C$20=\"División_de_Variables\",0,SUM($C$46:G46)/$C$26))),\"\")","v":0},{"$f":"IFERROR(IF(OR($C$26=\"\",$C$26=0,$C$26=\"No Aplica\"),0,\nIF(AND(H44=0,H45=0,OR(H43=\"\",H43=0)),0,\nIF($C$20=\"División_de_Variables\",0,SUM($C$46:H46)/$C$26))),\"\")","v":0},{"$f":"IFERROR(IF(OR($C$26=\"\",$C$26=0,$C$26=\"No Aplica\"),0,\nIF(AND(I44=0,I45=0,OR(I43=\"\",I43=0)),0,\nIF($C$20=\"División_de_Variables\",0,SUM($C$46:I46)/$C$26))),\"\")","v":0},{"$f":"IFERROR(IF(OR($C$26=\"\",$C$26=0,$C$26=\"No Aplica\"),0,\nIF(AND(J44=0,J45=0,OR(J43=\"\",J43=0)),0,\nIF($C$20=\"División_de_Variables\",0,SUM($C$46:J46)/$C$26))),\"\")","v":0},{"$f":"IFERROR(IF(OR($C$26=\"\",$C$26=0,$C$26=\"No Aplica\"),0,\nIF(AND(K44=0,K45=0,OR(K43=\"\",K43=0)),0,\nIF($C$20=\"División_de_Variables\",0,SUM($C$46:K46)/$C$26))),\"\")","v":0},{"$f":"IFERROR(IF(OR($C$26=\"\",$C$26=0,$C$26=\"No Aplica\"),0,\nIF(AND(L44=0,L45=0,OR(L43=\"\",L43=0)),0,\nIF($C$20=\"División_de_Variables\",0,SUM($C$46:L46)/$C$26))),\"\")","v":0},{"$f":"IFERROR(IF(OR($C$26=\"\",$C$26=0,$C$26=\"No Aplica\"),0,\nIF(AND(M44=0,M45=0,OR(M43=\"\",M43=0)),0,\nIF($C$20=\"División_de_Variables\",0,SUM($C$46:M46)/$C$26))),\"\")","v":0},{"$f":"IFERROR(IF(OR($C$26=\"\",$C$26=0,$C$26=\"No Aplica\"),0,\nIF(AND(N44=0,N45=0,OR(N43=\"\",N43=0)),0,\nIF($C$20=\"División_de_Variables\",0,SUM($C$46:N46)/$C$26))),\"\")","v":0},{"$f":"IFERROR(IF(OR($C$26=\"\",$C$26=0,$C$26=\"No Aplica\"),0,\nIF(AND(O44=0,O45=0,OR(O43=\"\",O43=0)),0,\nIF($C$20=\"División_de_Variables\",0,SUM($C$46:O46)/$C$26))),\"\")","v":0},{"$f":"IFERROR(IF(OR($C$26=\"\",$C$26=0,$C$26=\"No Aplica\"),0,\nIF(AND(P44=0,P45=0,OR(P43=\"\",P43=0)),0,\nIF($C$20=\"División_de_Variables\",0,SUM($C$46:P46)/$C$26))),\"\")","v":0},{"$f":"IFERROR(IF(OR($C$26=\"\",$C$26=0,$C$26=\"No Aplica\"),0,\nIF(AND(Q44=0,Q45=0,OR(Q43=\"\",Q43=0)),0,\nIF($C$20=\"División_de_Variables\",0,SUM($C$46:Q46)/$C$26))),\"\")","v":0},{"$f":"IFERROR(IF(OR($C$26=\"\",$C$26=0,$C$26=\"No Aplica\"),0,\nIF(AND(R44=0,R45=0,OR(R43=\"\",R43=0)),0,\nIF($C$20=\"División_de_Variables\",0,SUM($C$46:R46)/$C$26))),\"\")","v":0},{"$f":"IFERROR(IF(OR($C$26=\"\",$C$26=0,$C$26=\"No Aplica\"),0,\nIF(AND(S44=0,S45=0,OR(S43=\"\",S43=0)),0,\nIF($C$20=\"División_de_Variables\",0,SUM($C$46:S46)/$C$26))),\"\")","v":0},{"$f":"IFERROR(IF(OR($C$26=\"\",$C$26=0,$C$26=\"No Aplica\"),0,\nIF(AND(T44=0,T45=0,OR(T43=\"\",T43=0)),0,\nIF($C$20=\"División_de_Variables\",0,SUM($C$46:T46)/$C$26))),\"\")","v":0},{"$f":"IFERROR(IF(OR($C$26=\"\",$C$26=0,$C$26=\"No Aplica\"),0,\nIF(AND(U44=0,U45=0,OR(U43=\"\",U43=0)),0,\nIF($C$20=\"División_de_Variables\",0,SUM($C$46:U46)/$C$26))),\"\")","v":0},{"$f":"IFERROR(IF(OR($C$26=\"\",$C$26=0,$C$26=\"No Aplica\"),0,\nIF(AND(V44=0,V45=0,OR(V43=\"\",V43=0)),0,\nIF($C$20=\"División_de_Variables\",0,SUM($C$46:V46)/$C$26))),\"\")","v":0},{"$f":"IFERROR(IF(OR($C$26=\"\",$C$26=0,$C$26=\"No Aplica\"),0,\nIF(AND(W44=0,W45=0,OR(W43=\"\",W43=0)),0,\nIF($C$20=\"División_de_Variables\",0,SUM($C$46:W46)/$C$26))),\"\")","v":0},{"$f":"IFERROR(IF(OR($C$26=\"\",$C$26=0,$C$26=\"No Aplica\"),0,\nIF(AND(X44=0,X45=0,OR(X43=\"\",X43=0)),0,\nIF($C$20=\"División_de_Variables\",0,SUM($C$46:X46)/$C$26))),\"\")","v":0},{"$f":"IFERROR(IF(OR($C$26=\"\",$C$26=0,$C$26=\"No Aplica\"),0,\nIF(AND(Y44=0,Y45=0,OR(Y43=\"\",Y43=0)),0,\nIF($C$20=\"División_de_Variables\",0,SUM($C$46:Y46)/$C$26))),\"\")","v":0},{"$f":"IFERROR(IF(OR($C$26=\"\",$C$26=0,$C$26=\"No Aplica\"),0,\nIF(AND(Z44=0,Z45=0,OR(Z43=\"\",Z43=0)),0,\nIF($C$20=\"División_de_Variables\",0,SUM($C$46:Z46)/$C$26))),\"\")","v":0},{"$f":"IFERROR(IF(OR($C$26=\"\",$C$26=0,$C$26=\"No Aplica\"),0,\nIF(AND(AA44=0,AA45=0,OR(AA43=\"\",AA43=0)),0,\nIF($C$20=\"División_de_Variables\",0,SUM($C$46:AA46)/$C$26))),\"\")","v":0},{"$f":"IFERROR(IF(OR($C$26=\"\",$C$26=0,$C$26=\"No Aplica\"),0,\nIF(AND(AB44=0,AB45=0,OR(AB43=\"\",AB43=0)),0,\nIF($C$20=\"División_de_Variables\",0,SUM($C$46:AB46)/$C$26))),\"\")","v":0},{"$f":"IFERROR(IF(OR($C$26=\"\",$C$26=0,$C$26=\"No Aplica\"),0,\nIF(AND(AC44=0,AC45=0,OR(AC43=\"\",AC43=0)),0,\nIF($C$20=\"División_de_Variables\",0,SUM($C$46:AC46)/$C$26))),\"\")","v":0},{"$f":"IFERROR(IF(OR($C$26=\"\",$C$26=0,$C$26=\"No Aplica\"),0,\nIF(AND(AD44=0,AD45=0,OR(AD43=\"\",AD43=0)),0,\nIF($C$20=\"División_de_Variables\",0,SUM($C$46:AD46)/$C$26))),\"\")","v":0},{"$f":"IFERROR(IF(OR($C$26=\"\",$C$26=0,$C$26=\"No Aplica\"),0,\nIF(AND(AE44=0,AE45=0,OR(AE43=\"\",AE43=0)),0,\nIF($C$20=\"División_de_Variables\",0,SUM($C$46:AE46)/$C$26))),\"\")","v":0},{"$f":"IFERROR(IF(OR($C$26=\"\",$C$26=0,$C$26=\"No Aplica\"),0,\nIF(AND(AF44=0,AF45=0,OR(AF43=\"\",AF43=0)),0,\nIF($C$20=\"División_de_Variables\",0,SUM($C$46:AF46)/$C$26))),\"\")","v":0},{"$f":"IFERROR(IF(OR($C$26=\"\",$C$26=0,$C$26=\"No Aplica\"),0,\nIF(AND(AG44=0,AG45=0,OR(AG43=\"\",AG43=0)),0,\nIF($C$20=\"División_de_Variables\",0,SUM($C$46:AG46)/$C$26))),\"\")","v":0},{"$f":"IFERROR(IF(OR($C$26=\"\",$C$26=0,$C$26=\"No Aplica\"),0,\nIF(AND(AH44=0,AH45=0,OR(AH43=\"\",AH43=0)),0,\nIF($C$20=\"División_de_Variables\",0,SUM($C$46:AH46)/$C$26))),\"\")","v":0},{"$f":"IFERROR(IF(OR($C$26=\"\",$C$26=0,$C$26=\"No Aplica\"),0,\nIF(AND(AI44=0,AI45=0,OR(AI43=\"\",AI43=0)),0,\nIF($C$20=\"División_de_Variables\",0,SUM($C$46:AI46)/$C$26))),\"\")","v":0},{"$f":"IFERROR(IF(OR($C$26=\"\",$C$26=0,$C$26=\"No Aplica\"),0,\nIF(AND(AJ44=0,AJ45=0,OR(AJ43=\"\",AJ43=0)),0,\nIF($C$20=\"División_de_Variables\",0,SUM($C$46:AJ46)/$C$26))),\"\")","v":0},{"$f":"IFERROR(IF(OR($C$26=\"\",$C$26=0,$C$26=\"No Aplica\"),0,\nIF(AND(AK44=0,AK45=0,OR(AK43=\"\",AK43=0)),0,\nIF($C$20=\"División_de_Variables\",0,SUM($C$46:AK46)/$C$26))),\"\")","v":0},{"$f":"IFERROR(IF(OR($C$26=\"\",$C$26=0,$C$26=\"No Aplica\"),0,\nIF(AND(AL44=0,AL45=0,OR(AL43=\"\",AL43=0)),0,\nIF($C$20=\"División_de_Variables\",0,SUM($C$46:AL46)/$C$26))),\"\")","v":0},{"$f":"IFERROR(IF(OR($C$26=\"\",$C$26=0,$C$26=\"No Aplica\"),0,\nIF(AND(AM44=0,AM45=0,OR(AM43=\"\",AM43=0)),0,\nIF($C$20=\"División_de_Variables\",0,SUM($C$46:AM46)/$C$26))),\"\")","v":0},{"$f":"IFERROR(IF(OR($C$26=\"\",$C$26=0,$C$26=\"No Aplica\"),0,\nIF(AND(AN44=0,AN45=0,OR(AN43=\"\",AN43=0)),0,\nIF($C$20=\"División_de_Variables\",0,SUM($C$46:AN46)/$C$26))),\"\")","v":0},{"$f":"IFERROR(IF(OR($C$26=\"\",$C$26=0,$C$26=\"No Aplica\"),0,\nIF(AND(AO44=0,AO45=0,OR(AO43=\"\",AO43=0)),0,\nIF($C$20=\"División_de_Variables\",0,SUM($C$46:AO46)/$C$26))),\"\")","v":0},{"$f":"IFERROR(IF(OR($C$26=\"\",$C$26=0,$C$26=\"No Aplica\"),0,\nIF(AND(AP44=0,AP45=0,OR(AP43=\"\",AP43=0)),0,\nIF($C$20=\"División_de_Variables\",0,SUM($C$46:AP46)/$C$26))),\"\")","v":0},{"$f":"IFERROR(IF(OR($C$26=\"\",$C$26=0,$C$26=\"No Aplica\"),0,\nIF(AND(AQ44=0,AQ45=0,OR(AQ43=\"\",AQ43=0)),0,\nIF($C$20=\"División_de_Variables\",0,SUM($C$46:AQ46)/$C$26))),\"\")","v":0},{"$f":"IFERROR(IF(OR($C$26=\"\",$C$26=0,$C$26=\"No Aplica\"),0,\nIF(AND(AR44=0,AR45=0,OR(AR43=\"\",AR43=0)),0,\nIF($C$20=\"División_de_Variables\",0,SUM($C$46:AR46)/$C$26))),\"\")","v":0},{"$f":"IFERROR(IF(OR($C$26=\"\",$C$26=0,$C$26=\"No Aplica\"),0,\nIF(AND(AS44=0,AS45=0,OR(AS43=\"\",AS43=0)),0,\nIF($C$20=\"División_de_Variables\",0,SUM($C$46:AS46)/$C$26))),\"\")","v":0},{"$f":"IFERROR(IF(OR($C$26=\"\",$C$26=0,$C$26=\"No Aplica\"),0,\nIF(AND(AT44=0,AT45=0,OR(AT43=\"\",AT43=0)),0,\nIF($C$20=\"División_de_Variables\",0,SUM($C$46:AT46)/$C$26))),\"\")","v":0},{"$f":"IFERROR(IF(OR($C$26=\"\",$C$26=0,$C$26=\"No Aplica\"),0,\nIF(AND(AU44=0,AU45=0,OR(AU43=\"\",AU43=0)),0,\nIF($C$20=\"División_de_Variables\",0,SUM($C$46:AU46)/$C$26))),\"\")","v":0},{"$f":"IFERROR(IF(OR($C$26=\"\",$C$26=0,$C$26=\"No Aplica\"),0,\nIF(AND(AV44=0,AV45=0,OR(AV43=\"\",AV43=0)),0,\nIF($C$20=\"División_de_Variables\",0,SUM($C$46:AV46)/$C$26))),\"\")","v":0},{"$f":"IFERROR(IF(OR($C$26=\"\",$C$26=0,$C$26=\"No Aplica\"),0,\nIF(AND(AW44=0,AW45=0,OR(AW43=\"\",AW43=0)),0,\nIF($C$20=\"División_de_Variables\",0,SUM($C$46:AW46)/$C$26))),\"\")","v":0},{"$f":"IFERROR(IF(OR($C$26=\"\",$C$26=0,$C$26=\"No Aplica\"),0,\nIF(AND(AX44=0,AX45=0,OR(AX43=\"\",AX43=0)),0,\nIF($C$20=\"División_de_Variables\",0,SUM($C$46:AX46)/$C$26))),\"\")","v":0},{"$f":"IFERROR(IF(OR($C$26=\"\",$C$26=0,$C$26=\"No Aplica\"),0,\nIF(AND(AY44=0,AY45=0,OR(AY43=\"\",AY43=0)),0,\nIF($C$20=\"División_de_Variables\",0,SUM($C$46:AY46)/$C$26))),\"\")","v":0},{"$f":"IFERROR(IF(OR($C$26=\"\",$C$26=0,$C$26=\"No Aplica\"),0,\nIF(AND(AZ44=0,AZ45=0,OR(AZ43=\"\",AZ43=0)),0,\nIF($C$20=\"División_de_Variables\",0,SUM($C$46:AZ46)/$C$26))),\"\")","v":0},{"$f":"IFERROR(IF(OR($C$26=\"\",$C$26=0,$C$26=\"No Aplica\"),0,\nIF(AND(BA44=0,BA45=0,OR(BA43=\"\",BA43=0)),0,\nIF($C$20=\"División_de_Variables\",0,SUM($C$46:BA46)/$C$26))),\"\")","v":0},{"$f":"IFERROR(IF(OR($C$26=\"\",$C$26=0,$C$26=\"No Aplica\"),0,\nIF(AND(BB44=0,BB45=0,OR(BB43=\"\",BB43=0)),0,\nIF($C$20=\"División_de_Variables\",0,SUM($C$46:BB46)/$C$26))),\"\")","v":0},{"$f":"IFERROR(IF(OR($C$26=\"\",$C$26=0,$C$26=\"No Aplica\"),0,\nIF(AND(BC44=0,BC45=0,OR(BC43=\"\",BC43=0)),0,\nIF($C$20=\"División_de_Variables\",0,SUM($C$46:BC46)/$C$26))),\"\")","v":0},{"$f":"IFERROR(IF(OR($C$26=\"\",$C$26=0,$C$26=\"No Aplica\"),0,\nIF(AND(BD44=0,BD45=0,OR(BD43=\"\",BD43=0)),0,\nIF($C$20=\"División_de_Variables\",0,SUM($C$46:BD46)/$C$26))),\"\")","v":0},{"$f":"IFERROR(IF(OR($C$26=\"\",$C$26=0,$C$26=\"No Aplica\"),0,\nIF(AND(BE44=0,BE45=0,OR(BE43=\"\",BE43=0)),0,\nIF($C$20=\"División_de_Variables\",0,SUM($C$46:BE46)/$C$26))),\"\")","v":0}]
[]
[{"$f":"CONCATENATE(\"GRAFICO: \",$A$47,\" AÑO \",YEAR($C$17))","v":"GRAFICO: PORCENTAJE DE CUMPLIMIENTO MENSUAL AÑO 2024"},null,null,null,null,null,null,null,{"$f":"IF(SUM($C$53:$N$53)=0,CONCATENATE(\"GRAFICO: NO APLICA\"),CONCATENATE(\"GRAFICO: \",$A$53,\" AÑO \",YEAR($C$17)))","v":"GRAFICO: NO APLICA"},null,null,null,null,null,null,null,null,null,null,{"$f":"IF(SUM($C$53:$N$53)=0,CONCATENATE(\"GRAFICO: NO APLICA\"),CONCATENATE(\"GRAFICO: \",$A$53,\" AÑO \",YEAR($C$17)+1))","v":"GRAFICO: NO APLICA"},null,null,null,null,null,null,null,null,null,null,null,{"$f":"IF(SUM($C$2:$N$53)=0,CONCATENATE(\"GRAFICO: NO APLICA\"),CONCATENATE(\"GRAFICO: \",$A$53,\" AÑO \",YEAR($C$17)+2))","v":"GRAFICO: PORCENTAJE DE CUMPLIMIENTO  AÑO 2026"},null,null,null,null,null,null,null,null,null,null,null,null,{"$f":"IF(SUM($D$53:$O$53)=0,CONCATENATE(\"GRAFICO: NO APLICA\"),CONCATENATE(\"GRAFICO: \",$A$53,\" AÑO \",YEAR($C$17)+3))","v":"GRAFICO: NO APLICA"}]
[]
[]
[]
[]
[]
[]
[]
[]
[]
[]
[]
[]
["MEJORA CONTINUA",null,null,null,null,null,null,null,null,null,null,null,null,null,null,null,null,null,null,{"$f":"CONCATENATE(\"GRAFICO: \",$A$47,\" AÑO \",YEAR($C$17)+1)","v":"GRAFICO: PORCENTAJE DE CUMPLIMIENTO MENSUAL AÑO 2025"},null,null,null,null,null,null,null,null,null,null,null,{"$f":"CONCATENATE(\"GRAFICO: \",$A$47,\" AÑO \",YEAR($C$17)+2)","v":"GRAFICO: PORCENTAJE DE CUMPLIMIENTO MENSUAL AÑO 2026"},null,null,null,null,null,null,null,null,null,null,null,null,{"$f":"CONCATENATE(\"GRAFICO: \",$A$47,\" AÑO \",YEAR($C$17)+3)","v":"GRAFICO: PORCENTAJE DE CUMPLIMIENTO MENSUAL AÑO 2027"}]
["PERÍODO  -   RESUMEN RESULTADOS",null,"ANÁLISIS",null,null,null,null,null,null,null,"CORRECCIONES Y ACCIONES DE MEJORA"]
[{"$f":"CONCATENATE(\" Ene \",YEAR($C$17))","v":" Ene 2024"},{"$f":"IFERROR(CONCATENATE(\"* PRO= \",C$43,\" - \",\"VAR1= \",C$44,\" - \",\"VAR2= \",C$45,\"\n* \",\"EJEmes= \",C$46,\" - \",\"%mes= \",ROUNDDOWN(C$47*100,1),\"\n* \",\"PROacum= \",C$49,\" - \",\"EJEacum= \",C$50,\"\n* \",\"%acum= \",ROUNDDOWN(C$51*100,1),\" - \",\"%anual= \",ROUNDDOWN(C$53*100,1)),\"\")","v":""}]
[{"$f":"CONCATENATE(\" Feb \",YEAR($C$17))","v":" Feb 2024"},{"$f":"IFERROR(CONCATENATE(\"* PRO= \",D$43,\" - \",\"VAR1= \",D$44,\" - \",\"VAR2= \",D$45,\"\n* \",\"EJEmes= \",D$46,\" - \",\"%mes= \",ROUNDDOWN(D$47*100,1),\"\n* \",\"PROacum= \",D$49,\" - \",\"EJEacum= \",D$50,\"\n* \",\"%acum= \",ROUNDDOWN(D$51*100,1),\" - \",\"%anual= \",ROUNDDOWN(D$53*100,1)),\"\")","v":""}]
[{"$f":"CONCATENATE(\" Mar\",YEAR($C$17))","v":" Mar2024"},{"$f":"IFERROR(CONCATENATE(\"* PRO= \",E$43,\" - \",\"VAR1= \",E$44,\" - \",\"VAR2= \",E$45,\"\n* \",\"EJEmes= \",E$46,\" - \",\"%mes= \",ROUNDDOWN(E$47*100,1),\"\n* \",\"PROacum= \",E$49,\" - \",\"EJEacum= \",E$50,\"\n* \",\"%acum= \",ROUNDDOWN(E$51*100,1),\" - \",\"%anual= \",ROUNDDOWN(E$53*100,1)),\"\")","v":""}]
[{"$f":"CONCATENATE(\" Abr \",YEAR($C$17))","v":" Abr 2024"},{"$f":"IFERROR(CONCATENATE(\"* PRO= \",F$43,\" - \",\"VAR1= \",F$44,\" - \",\"VAR2= \",F$45,\"\n* \",\"EJEmes= \",F$46,\" - \",\"%mes= \",ROUNDDOWN(F$47*100,1),\"\n* \",\"PROacum= \",F$49,\" - \",\"EJEacum= \",F$50,\"\n* \",\"%acum= \",ROUNDDOWN(F$51*100,1),\" - \",\"%anual= \",ROUNDDOWN(F$53*100,1)),\"\")","v":""}]
[{"$f":"CONCATENATE(\" May \",YEAR($C$17))","v":" May 2024"},{"$f":"IFERROR(CONCATENATE(\"* PRO= \",G$43,\" - \",\"VAR1= \",G$44,\" - \",\"VAR2= \",G$45,\"\n* \",\"EJEmes= \",G$46,\" - \",\"%mes= \",ROUNDDOWN(G$47*100,1),\"\n* \",\"PROacum= \",G$49,\" - \",\"EJEacum= \",G$50,\"\n* \",\"%acum= \",ROUNDDOWN(G$51*100,1),\" - \",\"%anual= \",ROUNDDOWN(G$53*100,1)),\"\")","v":""}]
[{"$f":"CONCATENATE(\" Jun \",YEAR($C$17))","v":" Jun 2024"},{"$f":"IFERROR(CONCATENATE(\"* PRO= \",H$43,\" - \",\"VAR1= \",H$44,\" - \",\"VAR2= \",H$45,\"\n* \",\"EJEmes= \",H$46,\" - \",\"%mes= \",ROUNDDOWN(H$47*100,1),\"\n* \",\"PROacum= \",H$49,\" - \",\"EJEacum= \",H$50,\"\n* \",\"%acum= \",ROUNDDOWN(H$51*100,1),\" - \",\"%anual= \",ROUNDDOWN(H$53*100,1)),\"\")","v":""}]
[{"$f":"CONCATENATE(\" Jul \",YEAR($C$17))","v":" Jul 2024"},{"$f":"IFERROR(CONCATENATE(\"* PRO= \",I$43,\" - \",\"VAR1= \",I$44,\" - \",\"VAR2= \",I$45,\"\n* \",\"EJEmes= \",I$46,\" - \",\"%mes= \",ROUNDDOWN(I$47*100,1),\"\n* \",\"PROacum= \",I$49,\" - \",\"EJEacum= \",I$50,\"\n* \",\"%acum= \",ROUNDDOWN(I$51*100,1),\" - \",\"%anual= \",ROUNDDOWN(I$53*100,1)),\"\")","v":""}]
[{"$f":"CONCATENATE(\" Ago \",YEAR($C$17))","v":" Ago 2024"},{"$f":"IFERROR(CONCATENATE(\"* PRO= \",J$43,\" - \",\"VAR1= \",J$44,\" - \",\"VAR2= \",J$45,\"\n* \",\"EJEmes= \",J$46,\" - \",\"%mes= \",ROUNDDOWN(J$47*100,1),\"\n* \",\"PROacum= \",J$49,\" - \",\"EJEacum= \",J$50,\"\n* \",\"%acum= \",ROUNDDOWN(J$51*100,1),\" - \",\"%anual= \",ROUNDDOWN(J$53*100,1)),\"\")","v":""}]
[{"$f":"CONCATENATE(\" Sep \",YEAR($C$17))","v":" Sep 2024"},{"$f":"IFERROR(CONCATENATE(\"* PRO= \",K$43,\" - \",\"VAR1= \",K$44,\" - \",\"VAR2= \",K$45,\"\n* \",\"EJEmes= \",K$46,\" - \",\"%mes= \",ROUNDDOWN(K$47*100,1),\"\n* \",\"PROacum= \",K$49,\" - \",\"EJEacum= \",K$50,\"\n* \",\"%acum= \",ROUNDDOWN(K$51*100,1),\" - \",\"%anual= \",ROUNDDOWN(K$53*100,1)),\"\")","v":""}]
[{"$f":"CONCATENATE(\" Oct \",YEAR($C$17))","v":" Oct 2024"},{"$f":"IFERROR(CONCATENATE(\"* PRO= \",L$43,\" - \",\"VAR1= \",L$44,\" - \",\"VAR2= \",L$45,\"\n* \",\"EJEmes= \",L$46,\" - \",\"%mes= \",ROUNDDOWN(L$47*100,1),\"\n* \",\"PROacum= \",L$49,\" - \",\"EJEacum= \",L$50,\"\n* \",\"%acum= \",ROUNDDOWN(L$51*100,1),\" - \",\"%anual= \",ROUNDDOWN(L$53*100,1)),\"\")","v":""}]
[{"$f":"CONCATENATE(\" Nov \",YEAR($C$17))","v":" Nov 2024"},{"$f":"IFERROR(CONCATENATE(\"* PRO= \",M$43,\" - \",\"VAR1= \",M$44,\" - \",\"VAR2= \",M$45,\"\n* \",\"EJEmes= \",M$46,\" - \",\"%mes= \",ROUNDDOWN(M$47*100,1),\"\n* \",\"PROacum= \",M$49,\" - \",\"EJEacum= \",M$50,\"\n* \",\"%acum= \",ROUNDDOWN(M$51*100,1),\" - \",\"%anual= \",ROUNDDOWN(M$53*100,1)),\"\")","v":""}]
[{"$f":"CONCATENATE(\" Dic \",YEAR($C$17))","v":" Dic 2024"},{"$f":"IFERROR(CONCATENATE(\"* PRO= \",N$43,\" - \",\"VAR1= \",N$44,\" - \",\"VAR2= \",N$45,\"\n* \",\"EJEmes= \",N$46,\" - \",\"%mes= \",ROUNDDOWN(N$47*100,1),\"\n* \",\"PROacum= \",N$49,\" - \",\"EJEacum= \",N$50,\"\n* \",\"%acum= \",ROUNDDOWN(N$51*100,1),\" - \",\"%anual= \",ROUNDDOWN(N$53*100,1)),\"\")","v":""}]
[{"$f":"CONCATENATE(\" Ene \",YEAR($C$17)+1)","v":" Ene 2025"},{"$f":"IFERROR(CONCATENATE(\"* PRO= \",O$43,\" - \",\"VAR1= \",O$44,\" - \",\"VAR2= \",O$45,\"\n* \",\"EJEmes= \",O$46,\" - \",\"%mes= \",ROUNDDOWN(O$47*100,1),\"\n* \",\"PROacum= \",O$49,\" - \",\"EJEacum= \",O$50,\"\n* \",\"%acum= \",ROUNDDOWN(O$51*100,1),\" - \",\"%anual= \",ROUNDDOWN(O$53*100,1)),\"\")","v":""}]
[{"$f":"CONCATENATE(\" Feb \",YEAR($C$17)+1)","v":" Feb 2025"},{"$f":"IFERROR(CONCATENATE(\"* PRO= \",P$43,\" - \",\"VAR1= \",P$44,\" - \",\"VAR2= \",P$45,\"\n* \",\"EJEmes= \",P$46,\" - \",\"%mes= \",ROUNDDOWN(P$47*100,1),\"\n* \",\"PROacum= \",P$49,\" - \",\"EJEacum= \",P$50,\"\n* \",\"%acum= \",ROUNDDOWN(P$51*100,1),\" - \",\"%anual= \",ROUNDDOWN(P$53*100,1)),\"\")","v":""}]
[{"$f":"CONCATENATE(\" Mar\",YEAR($C$17)+1)","v":" Mar2025"},{"$f":"IFERROR(CONCATENATE(\"* PRO= \",Q$43,\" - \",\"VAR1= \",Q$44,\" - \",\"VAR2= \",Q$45,\"\n* \",\"EJEmes= \",Q$46,\" - \",\"%mes= \",ROUNDDOWN(Q$47*100,1),\"\n* \",\"PROacum= \",Q$49,\" - \",\"EJEacum= \",Q$50,\"\n* \",\"%acum= \",ROUNDDOWN(Q$51*100,1),\" - \",\"%anual= \",ROUNDDOWN(Q$53*100,1)),\"\")","v":""}]
[{"$f":"CONCATENATE(\" Abr \",YEAR($C$17)+1)","v":" Abr 2025"},{"$f":"IFERROR(CONCATENATE(\"* PRO= \",R$43,\" - \",\"VAR1= \",R$44,\" - \",\"VAR2= \",R$45,\"\n* \",\"EJEmes= \",R$46,\" - \",\"%mes= \",ROUNDDOWN(R$47*100,1),\"\n* \",\"PROacum= \",R$49,\" - \",\"EJEacum= \",R$50,\"\n* \",\"%acum= \",ROUNDDOWN(R$51*100,1),\" - \",\"%anual= \",ROUNDDOWN(R$53*100,1)),\"\")","v":""}]
[{"$f":"CONCATENATE(\" May \",YEAR($C$17)+1)","v":" May 2025"},{"$f":"IFERROR(CONCATENATE(\"* PRO= \",S$43,\" - \",\"VAR1= \",S$44,\" - \",\"VAR2= \",S$45,\"\n* \",\"EJEmes= \",S$46,\" - \",\"%mes= \",ROUNDDOWN(S$47*100,1),\"\n* \",\"PROacum= \",S$49,\" - \",\"EJEacum= \",S$50,\"\n* \",\"%acum= \",ROUNDDOWN(S$51*100,1),\" - \",\"%anual= \",ROUNDDOWN(S$53*100,1)),\"\")","v":""}]
[{"$f":"CONCATENATE(\" Jun \",YEAR($C$17)+1)","v":" Jun 2025"},{"$f":"IFERROR(CONCATENATE(\"* PRO= \",T$43,\" - \",\"VAR1= \",T$44,\" - \",\"VAR2= \",T$45,\"\n* \",\"EJEmes= \",T$46,\" - \",\"%mes= \",ROUNDDOWN(T$47*100,1),\"\n* \",\"PROacum= \",T$49,\" - \",\"EJEacum= \",T$50,\"\n* \",\"%acum= \",ROUNDDOWN(T$51*100,1),\" - \",\"%anual= \",ROUNDDOWN(T$53*100,1)),\"\")","v":""}]
[{"$f":"CONCATENATE(\" Jul \",YEAR($C$17)+1)","v":" Jul 2025"},{"$f":"IFERROR(CONCATENATE(\"* PRO= \",U$43,\" - \",\"VAR1= \",U$44,\" - \",\"VAR2= \",U$45,\"\n* \",\"EJEmes= \",U$46,\" - \",\"%mes= \",ROUNDDOWN(U$47*100,1),\"\n* \",\"PROacum= \",U$49,\" - \",\"EJEacum= \",U$50,\"\n* \",\"%acum= \",ROUNDDOWN(U$51*100,1),\" - \",\"%anual= \",ROUNDDOWN(U$53*100,1)),\"\")","v":""}]
[{"$f":"CONCATENATE(\" Ago \",YEAR($C$17)+1)","v":" Ago 2025"},{"$f":"IFERROR(CONCATENATE(\"* PRO= \",V$43,\" - \",\"VAR1= \",V$44,\" - \",\"VAR2= \",V$45,\"\n* \",\"EJEmes= \",V$46,\" - \",\"%mes= \",ROUNDDOWN(V$47*100,1),\"\n* \",\"PROacum= \",V$49,\" - \",\"EJEacum= \",V$50,\"\n* \",\"%acum= \",ROUNDDOWN(V$51*100,1),\" - \",\"%anual= \",ROUNDDOWN(V$53*100,1)),\"\")","v":""}]
[{"$f":"CONCATENATE(\" Sep \",YEAR($C$17)+1)","v":" Sep 2025"},{"$f":"IFERROR(CONCATENATE(\"* PRO= \",W$43,\" - \",\"VAR1= \",W$44,\" - \",\"VAR2= \",W$45,\"\n* \",\"EJEmes= \",W$46,\" - \",\"%mes= \",ROUNDDOWN(W$47*100,1),\"\n* \",\"PROacum= \",W$49,\" - \",\"EJEacum= \",W$50,\"\n* \",\"%acum= \",ROUNDDOWN(W$51*100,1),\" - \",\"%anual= \",ROUNDDOWN(W$53*100,1)),\"\")","v":""}]
[{"$f":"CONCATENATE(\" Oct \",YEAR($C$17)+1)","v":" Oct 2025"},{"$f":"IFERROR(CONCATENATE(\"* PRO= \",X$43,\" - \",\"VAR1= \",X$44,\" - \",\"VAR2= \",X$45,\"\n* \",\"EJEmes= \",X$46,\" - \",\"%mes= \",ROUNDDOWN(X$47*100,1),\"\n* \",\"PROacum= \",X$49,\" - \",\"EJEacum= \",X$50,\"\n* \",\"%acum= \",ROUNDDOWN(X$51*100,1),\" - \",\"%anual= \",ROUNDDOWN(X$53*100,1)),\"\")","v":""}]
[{"$f":"CONCATENATE(\" Nov \",YEAR($C$17)+1)","v":" Nov 2025"},{"$f":"IFERROR(CONCATENATE(\"* PRO= \",Y$43,\" - \",\"VAR1= \",Y$44,\" - \",\"VAR2= \",Y$45,\"\n* \",\"EJEmes= \",Y$46,\" - \",\"%mes= \",ROUNDDOWN(Y$47*100,1),\"\n* \",\"PROacum= \",Y$49,\" - \",\"EJEacum= \",Y$50,\"\n* \",\"%acum= \",ROUNDDOWN(Y$51*100,1),\" - \",\"%anual= \",ROUNDDOWN(Y$53*100,1)),\"\")","v":""}]
[{"$f":"CONCATENATE(\" Dic \",YEAR($C$17)+1)","v":" Dic 2025"},{"$f":"IFERROR(CONCATENATE(\"* PRO= \",Z$43,\" - \",\"VAR1= \",Z$44,\" - \",\"VAR2= \",Z$45,\"\n* \",\"EJEmes= \",Z$46,\" - \",\"%mes= \",ROUNDDOWN(Z$47*100,1),\"\n* \",\"PROacum= \",Z$49,\" - \",\"EJEacum= \",Z$50,\"\n* \",\"%acum= \",ROUNDDOWN(Z$51*100,1),\" - \",\"%anual= \",ROUNDDOWN(Z$53*100,1)),\"\")","v":""}]
[{"$f":"CONCATENATE(\" Ene \",YEAR($C$17)+2)","v":" Ene 2026"},{"$f":"IFERROR(CONCATENATE(\"* PRO= \",AA$43,\" - \",\"VAR1= \",AA$44,\" - \",\"VAR2= \",AA$45,\"\n* \",\"EJEmes= \",AA$46,\" - \",\"%mes= \",ROUNDDOWN(AA$47*100,1),\"\n* \",\"PROacum= \",AA$49,\" - \",\"EJEacum= \",AA$50,\"\n* \",\"%acum= \",ROUNDDOWN(AA$51*100,1),\" - \",\"%anual= \",ROUNDDOWN(AA$53*100,1)),\"\")","v":""}]
[{"$f":"CONCATENATE(\" Feb \",YEAR($C$17)+2)","v":" Feb 2026"},{"$f":"IFERROR(CONCATENATE(\"* PRO= \",AB$43,\" - \",\"VAR1= \",AB$44,\" - \",\"VAR2= \",AB$45,\"\n* \",\"EJEmes= \",AB$46,\" - \",\"%mes= \",ROUNDDOWN(AB$47*100,1),\"\n* \",\"PROacum= \",AB$49,\" - \",\"EJEacum= \",AB$50,\"\n* \",\"%acum= \",ROUNDDOWN(AB$51*100,1),\" - \",\"%anual= \",ROUNDDOWN(AB$53*100,1)),\"\")","v":""}]
[{"$f":"CONCATENATE(\" Mar\",YEAR($C$17)+2)","v":" Mar2026"},{"$f":"IFERROR(CONCATENATE(\"* PRO= \",AC$43,\" - \",\"VAR1= \",AC$44,\" - \",\"VAR2= \",AC$45,\"\n* \",\"EJEmes= \",AC$46,\" - \",\"%mes= \",ROUNDDOWN(AC$47*100,1),\"\n* \",\"PROacum= \",AC$49,\" - \",\"EJEacum= \",AC$50,\"\n* \",\"%acum= \",ROUNDDOWN(AC$51*100,1),\" - \",\"%anual= \",ROUNDDOWN(AC$53*100,1)),\"\")","v":""}]
[{"$f":"CONCATENATE(\" Abr \",YEAR($C$17)+2)","v":" Abr 2026"},{"$f":"IFERROR(CONCATENATE(\"* PRO= \",AD$43,\" - \",\"VAR1= \",AD$44,\" - \",\"VAR2= \",AD$45,\"\n* \",\"EJEmes= \",AD$46,\" - \",\"%mes= \",ROUNDDOWN(AD$47*100,1),\"\n* \",\"PROacum= \",AD$49,\" - \",\"EJEacum= \",AD$50,\"\n* \",\"%acum= \",ROUNDDOWN(AD$51*100,1),\" - \",\"%anual= \",ROUNDDOWN(AD$53*100,1)),\"\")","v":""}]
[{"$f":"CONCATENATE(\" May \",YEAR($C$17)+2)","v":" May 2026"},{"$f":"IFERROR(CONCATENATE(\"* PRO= \",AE$43,\" - \",\"VAR1= \",AE$44,\" - \",\"VAR2= \",AE$45,\"\n* \",\"EJEmes= \",AE$46,\" - \",\"%mes= \",ROUNDDOWN(AE$47*100,1),\"\n* \",\"PROacum= \",AE$49,\" - \",\"EJEacum= \",AE$50,\"\n* \",\"%acum= \",ROUNDDOWN(AE$51*100,1),\" - \",\"%anual= \",ROUNDDOWN(AE$53*100,1)),\"\")","v":""}]
[{"$f":"CONCATENATE(\" Jun \",YEAR($C$17)+2)","v":" Jun 2026"},{"$f":"IFERROR(CONCATENATE(\"* PRO= \",AF$43,\" - \",\"VAR1= \",AF$44,\" - \",\"VAR2= \",AF$45,\"\n* \",\"EJEmes= \",AF$46,\" - \",\"%mes= \",ROUNDDOWN(AF$47*100,1),\"\n* \",\"PROacum= \",AF$49,\" - \",\"EJEacum= \",AF$50,\"\n* \",\"%acum= \",ROUNDDOWN(AF$51*100,1),\" - \",\"%anual= \",ROUNDDOWN(AF$53*100,1)),\"\")","v":""}]
[{"$f":"CONCATENATE(\" Jul \",YEAR($C$17)+2)","v":" Jul 2026"},{"$f":"IFERROR(CONCATENATE(\"* PRO= \",AG$43,\" - \",\"VAR1= \",AG$44,\" - \",\"VAR2= \",AG$45,\"\n* \",\"EJEmes= \",AG$46,\" - \",\"%mes= \",ROUNDDOWN(AG$47*100,1),\"\n* \",\"PROacum= \",AG$49,\" - \",\"EJEacum= \",AG$50,\"\n* \",\"%acum= \",ROUNDDOWN(AG$51*100,1),\" - \",\"%anual= \",ROUNDDOWN(AG$53*100,1)),\"\")","v":""}]
[{"$f":"CONCATENATE(\" Ago \",YEAR($C$17)+2)","v":" Ago 2026"},{"$f":"IFERROR(CONCATENATE(\"* PRO= \",AH$43,\" - \",\"VAR1= \",AH$44,\" - \",\"VAR2= \",AH$45,\"\n* \",\"EJEmes= \",AH$46,\" - \",\"%mes= \",ROUNDDOWN(AH$47*100,1),\"\n* \",\"PROacum= \",AH$49,\" - \",\"EJEacum= \",AH$50,\"\n* \",\"%acum= \",ROUNDDOWN(AH$51*100,1),\" - \",\"%anual= \",ROUNDDOWN(AH$53*100,1)),\"\")","v":""}]
[{"$f":"CONCATENATE(\" Sep \",YEAR($C$17)+2)","v":" Sep 2026"},{"$f":"IFERROR(CONCATENATE(\"* PRO= \",AI$43,\" - \",\"VAR1= \",AI$44,\" - \",\"VAR2= \",AI$45,\"\n* \",\"EJEmes= \",AI$46,\" - \",\"%mes= \",ROUNDDOWN(AI$47*100,1),\"\n* \",\"PROacum= \",AI$49,\" - \",\"EJEacum= \",AI$50,\"\n* \",\"%acum= \",ROUNDDOWN(AI$51*100,1),\" - \",\"%anual= \",ROUNDDOWN(AI$53*100,1)),\"\")","v":""}]
[{"$f":"CONCATENATE(\" Oct \",YEAR($C$17)+2)","v":" Oct 2026"},{"$f":"IFERROR(CONCATENATE(\"* PRO= \",AJ$43,\" - \",\"VAR1= \",AJ$44,\" - \",\"VAR2= \",AJ$45,\"\n* \",\"EJEmes= \",AJ$46,\" - \",\"%mes= \",ROUNDDOWN(AJ$47*100,1),\"\n* \",\"PROacum= \",AJ$49,\" - \",\"EJEacum= \",AJ$50,\"\n* \",\"%acum= \",ROUNDDOWN(AJ$51*100,1),\" - \",\"%anual= \",ROUNDDOWN(AJ$53*100,1)),\"\")","v":""}]
[{"$f":"CONCATENATE(\" Nov \",YEAR($C$17)+2)","v":" Nov 2026"},{"$f":"IFERROR(CONCATENATE(\"* PRO= \",AK$43,\" - \",\"VAR1= \",AK$44,\" - \",\"VAR2= \",AK$45,\"\n* \",\"EJEmes= \",AK$46,\" - \",\"%mes= \",ROUNDDOWN(AK$47*100,1),\"\n* \",\"PROacum= \",AK$49,\" - \",\"EJEacum= \",AK$50,\"\n* \",\"%acum= \",ROUNDDOWN(AK$51*100,1),\" - \",\"%anual= \",ROUNDDOWN(AK$53*100,1)),\"\")","v":""}]
[{"$f":"CONCATENATE(\" Dic \",YEAR($C$17)+2)","v":" Dic 2026"},{"$f":"IFERROR(CONCATENATE(\"* PRO= \",AL$43,\" - \",\"VAR1= \",AL$44,\" - \",\"VAR2= \",AL$45,\"\n* \",\"EJEmes= \",AL$46,\" - \",\"%mes= \",ROUNDDOWN(AL$47*100,1),\"\n* \",\"PROacum= \",AL$49,\" - \",\"EJEacum= \",AL$50,\"\n* \",\"%acum= \",ROUNDDOWN(AL$51*100,1),\" - \",\"%anual= \",ROUNDDOWN(AL$53*100,1)),\"\")","v":""}]
[{"$f":"CONCATENATE(\" Ene \",YEAR($C$17)+3)","v":" Ene 2027"},{"$f":"IFERROR(CONCATENATE(\"* PRO= \",AM$43,\" - \",\"VAR1= \",AM$44,\" - \",\"VAR2= \",AM$45,\"\n* \",\"EJEmes= \",AM$46,\" - \",\"%mes= \",ROUNDDOWN(AM$47*100,1),\"\n* \",\"PROacum= \",AM$49,\" - \",\"EJEacum= \",AM$50,\"\n* \",\"%acum= \",ROUNDDOWN(AM$51*100,1),\" - \",\"%anual= \",ROUNDDOWN(AM$53*100,1)),\"\")","v":""}]
[{"$f":"CONCATENATE(\" Feb \",YEAR($C$17)+3)","v":" Feb 2027"},{"$f":"IFERROR(CONCATENATE(\"* PRO= \",AN$43,\" - \",\"VAR1= \",AN$44,\" - \",\"VAR2= \",AN$45,\"\n* \",\"EJEmes= \",AN$46,\" - \",\"%mes= \",ROUNDDOWN(AN$47*100,1),\"\n* \",\"PROacum= \",AN$49,\" - \",\"EJEacum= \",AN$50,\"\n* \",\"%acum= \",ROUNDDOWN(AN$51*100,1),\" - \",\"%anual= \",ROUNDDOWN(AN$53*100,1)),\"\")","v":""}]
[{"$f":"CONCATENATE(\" Mar\",YEAR($C$17)+3)","v":" Mar2027"},{"$f":"IFERROR(CONCATENATE(\"* PRO= \",AO$43,\" - \",\"VAR1= \",AO$44,\" - \",\"VAR2= \",AO$45,\"\n* \",\"EJEmes= \",AO$46,\" - \",\"%mes= \",ROUNDDOWN(AO$47*100,1),\"\n* \",\"PROacum= \",AO$49,\" - \",\"EJEacum= \",AO$50,\"\n* \",\"%acum= \",ROUNDDOWN(AO$51*100,1),\" - \",\"%anual= \",ROUNDDOWN(AO$53*100,1)),\"\")","v":""}]
[{"$f":"CONCATENATE(\" Abr \",YEAR($C$17)+3)","v":" Abr 2027"},{"$f":"IFERROR(CONCATENATE(\"* PRO= \",AP$43,\" - \",\"VAR1= \",AP$44,\" - \",\"VAR2= \",AP$45,\"\n* \",\"EJEmes= \",AP$46,\" - \",\"%mes= \",ROUNDDOWN(AP$47*100,1),\"\n* \",\"PROacum= \",AP$49,\" - \",\"EJEacum= \",AP$50,\"\n* \",\"%acum= \",ROUNDDOWN(AP$51*100,1),\" - \",\"%anual= \",ROUNDDOWN(AP$53*100,1)),\"\")","v":""}]
[{"$f":"CONCATENATE(\" May \",YEAR($C$17)+3)","v":" May 2027"},{"$f":"IFERROR(CONCATENATE(\"* PRO= \",AQ$43,\" - \",\"VAR1= \",AQ$44,\" - \",\"VAR2= \",AQ$45,\"\n* \",\"EJEmes= \",AQ$46,\" - \",\"%mes= \",ROUNDDOWN(AQ$47*100,1),\"\n* \",\"PROacum= \",AQ$49,\" - \",\"EJEacum= \",AQ$50,\"\n* \",\"%acum= \",ROUNDDOWN(AQ$51*100,1),\" - \",\"%anual= \",ROUNDDOWN(AQ$53*100,1)),\"\")","v":""}]
[{"$f":"CONCATENATE(\" Jun \",YEAR($C$17)+3)","v":" Jun 2027"},{"$f":"IFERROR(CONCATENATE(\"* PRO= \",AR$43,\" - \",\"VAR1= \",AR$44,\" - \",\"VAR2= \",AR$45,\"\n* \",\"EJEmes= \",AR$46,\" - \",\"%mes= \",ROUNDDOWN(AR$47*100,1),\"\n* \",\"PROacum= \",AR$49,\" - \",\"EJEacum= \",AR$50,\"\n* \",\"%acum= \",ROUNDDOWN(AR$51*100,1),\" - \",\"%anual= \",ROUNDDOWN(AR$53*100,1)),\"\")","v":""}]
[{"$f":"CONCATENATE(\" Jul \",YEAR($C$17)+3)","v":" Jul 2027"},{"$f":"IFERROR(CONCATENATE(\"* PRO= \",AS$43,\" - \",\"VAR1= \",AS$44,\" - \",\"VAR2= \",AS$45,\"\n* \",\"EJEmes= \",AS$46,\" - \",\"%mes= \",ROUNDDOWN(AS$47*100,1),\"\n* \",\"PROacum= \",AS$49,\" - \",\"EJEacum= \",AS$50,\"\n* \",\"%acum= \",ROUNDDOWN(AS$51*100,1),\" - \",\"%anual= \",ROUNDDOWN(AS$53*100,1)),\"\")","v":""}]
[{"$f":"CONCATENATE(\" Ago \",YEAR($C$17)+3)","v":" Ago 2027"},{"$f":"IFERROR(CONCATENATE(\"* PRO= \",AT$43,\" - \",\"VAR1= \",AT$44,\" - \",\"VAR2= \",AT$45,\"\n* \",\"EJEmes= \",AT$46,\" - \",\"%mes= \",ROUNDDOWN(AT$47*100,1),\"\n* \",\"PROacum= \",AT$49,\" - \",\"EJEacum= \",AT$50,\"\n* \",\"%acum= \",ROUNDDOWN(AT$51*100,1),\" - \",\"%anual= \",ROUNDDOWN(AT$53*100,1)),\"\")","v":""}]
[{"$f":"CONCATENATE(\" Sep \",YEAR($C$17)+3)","v":" Sep 2027"},{"$f":"IFERROR(CONCATENATE(\"* PRO= \",AU$43,\" - \",\"VAR1= \",AU$44,\" - \",\"VAR2= \",AU$45,\"\n* \",\"EJEmes= \",AU$46,\" - \",\"%mes= \",ROUNDDOWN(AU$47*100,1),\"\n* \",\"PROacum= \",AU$49,\" - \",\"EJEacum= \",AU$50,\"\n* \",\"%acum= \",ROUNDDOWN(AU$51*100,1),\" - \",\"%anual= \",ROUNDDOWN(AU$53*100,1)),\"\")","v":""}]
[{"$f":"CONCATENATE(\" Oct \",YEAR($C$17)+3)","v":" Oct 2027"},{"$f":"IFERROR(CONCATENATE(\"* PRO= \",AV$43,\" - \",\"VAR1= \",AV$44,\" - \",\"VAR2= \",AV$45,\"\n* \",\"EJEmes= \",AV$46,\" - \",\"%mes= \",ROUNDDOWN(AV$47*100,1),\"\n* \",\"PROacum= \",AV$49,\" - \",\"EJEacum= \",AV$50,\"\n* \",\"%acum= \",ROUNDDOWN(AV$51*100,1),\" - \",\"%anual= \",ROUNDDOWN(AV$53*100,1)),\"\")","v":""}]
[{"$f":"CONCATENATE(\" Nov \",YEAR($C$17)+3)","v":" Nov 2027"},{"$f":"IFERROR(CONCATENATE(\"* PRO= \",AW$43,\" - \",\"VAR1= \",AW$44,\" - \",\"VAR2= \",AW$45,\"\n* \",\"EJEmes= \",AW$46,\" - \",\"%mes= \",ROUNDDOWN(AW$47*100,1),\"\n* \",\"PROacum= \",AW$49,\" - \",\"EJEacum= \",AW$50,\"\n* \",\"%acum= \",ROUNDDOWN(AW$51*100,1),\" - \",\"%anual= \",ROUNDDOWN(AW$53*100,1)),\"\")","v":""}]
[{"$f":"CONCATENATE(\" Dic \",YEAR($C$17)+3)","v":" Dic 2027"},{"$f":"IFERROR(CONCATENATE(\"* PRO= \",AX$43,\" - \",\"VAR1= \",AX$44,\" - \",\"VAR2= \",AX$45,\"\n* \",\"EJEmes= \",AX$46,\" - \",\"%mes= \",ROUNDDOWN(AX$47*100,1),\"\n* \",\"PROacum= \",AX$49,\" - \",\"EJEacum= \",AX$50,\"\n* \",\"%acum= \",ROUNDDOWN(AX$51*100,1),\" - \",\"%anual= \",ROUNDDOWN(AX$53*100,1)),\"\")","v":""}]
[{"$f":"CONCATENATE(\" Ene \",YEAR($C$17)+4)","v":" Ene 2028"},{"$f":"IFERROR(CONCATENATE(\"* PRO= \",AY$43,\" - \",\"VAR1= \",AY$44,\" - \",\"VAR2= \",AY$45,\"\n* \",\"EJEmes= \",AY$46,\" - \",\"%mes= \",ROUNDDOWN(AY$47*100,1),\"\n* \",\"PROacum= \",AY$49,\" - \",\"EJEacum= \",AY$50,\"\n* \",\"%acum= \",ROUNDDOWN(AY$51*100,1),\" - \",\"%anual= \",ROUNDDOWN(AY$53*100,1)),\"\")","v":""}]
[{"$f":"CONCATENATE(\" Feb \",YEAR($C$17)+4)","v":" Feb 2028"},{"$f":"IFERROR(CONCATENATE(\"* PRO= \",AZ$43,\" - \",\"VAR1= \",AZ$44,\" - \",\"VAR2= \",AZ$45,\"\n* \",\"EJEmes= \",AZ$46,\" - \",\"%mes= \",ROUNDDOWN(AZ$47*100,1),\"\n* \",\"PROacum= \",AZ$49,\" - \",\"EJEacum= \",AZ$50,\"\n* \",\"%acum= \",ROUNDDOWN(AZ$51*100,1),\" - \",\"%anual= \",ROUNDDOWN(AZ$53*100,1)),\"\")","v":""}]
[{"$f":"CONCATENATE(\" Mar\",YEAR($C$17)+4)","v":" Mar2028"},{"$f":"IFERROR(CONCATENATE(\"* PRO= \",BA$43,\" - \",\"VAR1= \",BA$44,\" - \",\"VAR2= \",BA$45,\"\n* \",\"EJEmes= \",BA$46,\" - \",\"%mes= \",ROUNDDOWN(BA$47*100,1),\"\n* \",\"PROacum= \",BA$49,\" - \",\"EJEacum= \",BA$50,\"\n* \",\"%acum= \",ROUNDDOWN(BA$51*100,1),\" - \",\"%anual= \",ROUNDDOWN(BA$53*100,1)),\"\")","v":""}]
[{"$f":"CONCATENATE(\" Abr \",YEAR($C$17)+4)","v":" Abr 2028"},{"$f":"IFERROR(CONCATENATE(\"* PRO= \",BB$43,\" - \",\"VAR1= \",BB$44,\" - \",\"VAR2= \",BB$45,\"\n* \",\"EJEmes= \",BB$46,\" - \",\"%mes= \",ROUNDDOWN(BB$47*100,1),\"\n* \",\"PROacum= \",BB$49,\" - \",\"EJEacum= \",BB$50,\"\n* \",\"%acum= \",ROUNDDOWN(BB$51*100,1),\" - \",\"%anual= \",ROUNDDOWN(BB$53*100,1)),\"\")","v":""}]
[{"$f":"CONCATENATE(\" May \",YEAR($C$17)+4)","v":" May 2028"},{"$f":"IFERROR(CONCATENATE(\"* PRO= \",BC$43,\" - \",\"VAR1= \",BC$44,\" - \",\"VAR2= \",BC$45,\"\n* \",\"EJEmes= \",BC$46,\" - \",\"%mes= \",ROUNDDOWN(BC$47*100,1),\"\n* \",\"PROacum= \",BC$49,\" - \",\"EJEacum= \",BC$50,\"\n* \",\"%acum= \",ROUNDDOWN(BC$51*100,1),\" - \",\"%anual= \",ROUNDDOWN(BC$53*100,1)),\"\")","v":""}]
[{"$f":"CONCATENATE(\" Jun \",YEAR($C$17)+4)","v":" Jun 2028"},{"$f":"IFERROR(CONCATENATE(\"* PRO= \",BD$43,\" - \",\"VAR1= \",BD$44,\" - \",\"VAR2= \",BD$45,\"\n* \",\"EJEmes= \",BD$46,\" - \",\"%mes= \",ROUNDDOWN(BD$47*100,1),\"\n* \",\"PROacum= \",BD$49,\" - \",\"EJEacum= \",BD$50,\"\n* \",\"%acum= \",ROUNDDOWN(BD$51*100,1),\" - \",\"%anual= \",ROUNDDOWN(BD$53*100,1)),\"\")","v":""}]
[{"$f":"CONCATENATE(\" Jul \",YEAR($C$17)+4)","v":" Jul 2028"},{"$f":"IFERROR(CONCATENATE(\"* PRO= \",BE$43,\" - \",\"VAR1= \",BE$44,\" - \",\"VAR2= \",BE$45,\"\n* \",\"EJEmes= \",BE$46,\" - \",\"%mes= \",ROUNDDOWN(BE$47*100,1),\"\n* \",\"PROacum= \",BE$49,\" - \",\"EJEacum= \",BE$50,\"\n* \",\"%acum= \",ROUNDDOWN(BE$51*100,1),\" - \",\"%anual= \",ROUNDDOWN(BE$53*100,1)),\"\")","v":""}]
[]
["CONTROL DE MODIFICACIONES AL INDICADOR"]
["No.","FECHA (dd/mm/aaaa)","DESCRIPCIÓN DE LA MODIFICACIÓN",null,null,null,null,null,null,null,"JUSTIFICACIÓN DE LA MODIFICACIÓN"]
[]
[]
[]
[]
[]
[]
[]
[]
[]
[]
[]
[]
["Nota: Si este documento se encuentra impreso se considera Copia no Controlada. La versión vigente está  publicada en el sitio web del Instituto Distrital de la Gestión del Riesgo y Cambio Climático."]

{"sheet":"DE-FT-15 (Pág 2 de 2)","index":1,"n_rows":75,"n_cols":13,"rows_kept":75,"cut":false,"hidden":false,"merged":[[5,12,5,15],[74,1,74,15],[64,3,64,15],[65,3,65,15],[43,1,43,2],[62,1,62,2],[40,3,40,15],[39,3,39,15],[38,3,38,15],[32,3,32,15],[42,1,42,2],[42,3,42,15],[46,3,46,15],[34,1,34,2],[45,1,45,2],[45,3,45,15],[33,3,33,15],[34,3,34,15],[40,1,40,2],[37,3,37,15],[32,1,32,2],[33,1,33,2],[35,3,35,15],[59,3,59,15],[61,1,61,2],[61,3,61,15],[60,1,60,2],[23,3,23,15],[1,1,5,2],[1,3,5,11],[2,12,3,15],[7,1,7,15],[8,1,17,15],[19,3,19,15],[27,3,27,15],[30,1,30,2],[30,3,30,15],[21,3,21,15],[19,1,19,2],[22,3,22,15],[24,3,24,15],[20,3,20,15],[20,1,20,2],[25,1,25,2],[1,12,1,15],[21,1,21,2],[4,12,4,15],[22,1,22,2],[24,1,24,2],[48,3,48,15],[51,1,51,2],[27,1,27,2],[28,1,28,2],[31,1,31,2],[58,1,58,2],[26,3,26,15],[23,1,23,2],[26,1,26,2],[41,1,41,2],[38,1,38,2],[39,1,39,2],[41,3,41,15],[25,3,25,15],[31,3,31,15],[28,3,28,15],[36,1,36,2],[37,1,37,2],[29,1,29,2],[29,3,29,15],[36,3,36,15],[35,1,35,2],[65,1,65,2],[66,1,66,2],[68,1,68,2],[66,3,66,15],[43,3,43,15],[62,3,62,15],[46,1,46,2],[54,1,54,2],[56,3,56,15],[57,3,57,15],[54,3,54,15],[55,1,55,2],[56,1,56,2],[57,1,57,2],[47,1,47,2],[47,3,47,15],[51,3,51,15],[52,3,52,15],[48,1,48,2],[55,3,55,15],[53,3,53,15],[53,1,53,2],[58,3,58,15],[59,1,59,2],[73,1,73,2],[73,3,73,15],[44,1,44,2],[44,3,44,15],[49,1,49,2],[49,3,49,15],[67,1,67,2],[67,3,67,15],[72,1,72,2],[72,3,72,15],[71,1,71,2],[71,3,71,15],[52,1,52,2],[50,1,50,2],[50,3,50,15],[68,3,68,15],[69,3,69,15],[70,1,70,2],[70,3,70,15],[63,1,63,2],[63,3,63,15],[60,3,60,15],[64,1,64,2],[69,1,69,2]]}
[]
[null,null,null,"HOJA DE VIDA DEL INDICADOR",null,null,null,null,null,null,null,null,"Código: DE-FT-15"]
[null,null,null,null,null,null,null,null,null,null,null,null,"Versión: 9"]
[]
[null,null,null,null,null,null,null,null,null,null,null,null,"Pagina:  2 de 2"]
[null,null,null,null,null,null,null,null,null,null,null,null,"Vigente desde: 01/08/2024"]
[]
[null,"INSTRUCCIONES PARA EL DILIGENCIAMIENTO DEL FORMATO DE HOJA DE VIDA DEL INDICADOR"]
[null,"Documento donde se registra toda la información asociada a un indicador. Este documento permite llevar un registro detallado de los indicadores utilizados en la Entidad, así como reportar y hacer seguimiento de su avance.\n\nNota: el formato contiene ciertos campos que no deben ser diligenciados por el (la) usuario(a), pues se ajustan automáticamente dependiendo de la información ingresada en otros campos o es información predeterminada."]
[]
[]
[]
[]
[]
[]
[]
[]
[]
[]
[null,"SECCIÓN / CAMPO",null,"INSTRUCCIONES"]
[null,"INFORMACIÓN BÁSICA DEL INDICADOR",null,"En esta sección se registra información básica del indicador para conocer la forma en que se ubica en la estructura de gestión de la Entidad, el propósito, el tipo de indicador y los distintos tiempos y fechas de medición y reporte."]
[null,"PROCESO:",null,"Seleccione de la lista desplegable el proceso al que está asociado el indicador."]
[null,"TIPO DE PROCESO:",null,"Este campo presenta la asociación del proceso (Estratégico, Misional, de apoyo o de evaluación y seguimiento). Este campo se diligencia automáticamente."]
[null,"CÓDIGO DEL INDICADOR:",null,"El código del indicador es asignado por la Oficina Asesora de Planeación una vez validada la creación de un nuevo indicador. No debe diligenciar este campo."]
[null,"INSTRUMENTO DE PLANEACIÓN:",null,"Seleccione de la lista desplegable el plan, programa, sistema o proyecto al cual está asociado el indicador. \nEn caso de seleccionar la opción \"Proyecto de inversión\", registre en la casilla de la derecha el código o número del proyecto de inversión."]
[null,"OBJETIVO DEL PROCESO / PROYECTO DE INVERSIÓN / OBJETIVO ESTRATEGICO ASOCIADO:",null,"Registre el objetivo al que se le da cumplimiento, por medio de la meta que mide el indicador. Dependiendo del tipo de objetivo (estratégico, de proceso, etc.), debe registrar en este campo la información del objetivo definido en la caracterización del proceso, el Plan Estratégico Institucional PEI o el objetivo del proyecto de inversión, plan de desarrollo, etc."]
[null,"META ASOCIADA:",null,"Registre la meta asociada al instrumento de planeación y el objetivo registrado en la casilla anterior, cuyo cumplimiento se mide por medio del indicador. Dependiendo del instrumento de planeación elegido, debe registrar la meta asociada."]
[null,"NOMBRE DEL INDICADOR:",null,"Registre en este campo el nombre del indicador, que se construye a partir de la meta. \nEl nombre del indicador debe corresponder al que se registró en el instrumento de planeación seleccionado, por ejemplo: Plan de Acción (SGC), Plan Estratégico Institucional, etc.\nDe lo contrario debe redactar en nombre del indicador teniendo en cuenta la siguiente estructura y recomendaciones:\n1.Objeto(Sustantivo) + condición deseada del objeto (verbo conjugado) + elementos adicionales de contexto descriptivo.\n2.El nombre debe ser claro y sin ambigüedades, y referirse únicamente a lo que se va a medir. No debe utilizar palabras o expresiones que den lugar a diferentes interpretaciones o que no sea claro cómo se miden (por ejemplo: goce efectivo, gestión eficaz, etc.), así como magnitudes puntuales (por ejemplo: 16 planes, 1000 revisiones, etc.)."]
[null,"PROPÓSITO DEL INDICADOR:",null,"En este campo registre el objetivo específico del  indicador.(Que busca medir, por qué y para qué se mide).\n\"Da cuenta de la utilidad del indicador, donde se incluye el alcance del  indicador, precisando qué es, por qué y para qué se mide\". \nFuente: Guía para la Construcción y Análisis de Indicadores.DNP."]
[null,"ACLARACIONES PARA LA ADECUADA MEDICIÓN DEL INDICADOR:",null,"En este campo se debe incluir todas las aclaraciones que logren eliminar la subjetividad del indicador y que permitan entenderlo de una manera fácil y clara. (Ejemplo: 1) En caso de que mensualmente se programen porcentajes, aquí se debe aclarar el número de actividades con las que se logra ganar el porcentaje que se programó mensualmente. 2) Aquí se puede aclarar las fechas reales que mide el indicador, por ejemplo, recibir solicitudes del 1 al 25 de cada mes, siendo este el periodo que se evalúa para medir el indicador)."]
[null,"TIPO DE INDICADOR:",null,"Seleccione el tipo de indicador:\n- Eficacia: mide el grado de cumplimiento de un determinado objetivo.\n- Eficiencia: mide la relación entre el logro de un determinado objetivo y los recursos empleados para su consecución.\n- Efectividad: mide el impacto final de la actuación pública sobre la población objetivo, y refleja un cambio de comportamiento o una condición de dicha población después de la actuación pública. También se denominan \"indicadores de impacto\", y evalúan resultados de largo plazo, que no dependen totalmente de la gestión de la Entidad."]
[null,"FRECUENCIA DE ALIMENTACIÓN Y ANÁLISIS:",null,"En este campo se debe seleccionar (únicamente entre mensual y trimestral), de acuerdo al tipo de indicador, la frecuencia de alimentación y análisis del mismo."]
[null,"VIGENCIA:",null,"Este campo se diligencia automáticamente dependiendo del instrumento de planeación seleccionado."]
[null,"FECHA DE CREACIÓN:",null,"Registre la fecha con formato dd/mm/aaaa en que fue creado o inicia la medición del indicador."]
[null,"FECHA DE REPORTE:",null,"Registre en el campo con formato dd/mm/aaaa la fecha en que se está reportando el avance del indicador a la Oficina Asesora de Planeación."]
[null,"PERIODO A REPORTAR:",null,"Seleccione de la lista despegable el periodo a reportar (únicamente mensual o trimestral), el cual debe ser acorde a la casilla de frecuencia de alimentación y análisis."]
[null,"INFORMACIÓN PARA EL CÁLCULO DEL INDICADOR:",null,"En esta sección se registra la información requerida para calcular el resultado del indicador: tipo de fórmula, unidad de medida, variables que lo componen, tendencia, etc."]
[null,"TIPO DE FÓRMULA:",null,"Seleccione de la lista desplegable la forma como se calcula el resultado del indicador (I) a partir de las variables 1 y 2 (V1 y V2):\n- Sumatoria de Dos Variables (∑): I = V1 + V2. Cuando deba sumar el valor de dos variables y compararlo contra el resultado programado.\n- División de Variables: I = V1/V2. Cuando deba dividir dos variables de igual o diferente unidad de medida y compararlo contra el resultado programado.\n- Sumatoria de Una Variable (∑): I = ∑V1. Cuando deba acumular el valor de una sola variable y compararlo contra el resultado programado."]
[null,"UNIDAD DE MEDIDA DEL INDICADOR:",null,"Debe seleccionar primero el TIPO DE FORMULA, para que esta celda se active.\nSeleccione de la lista desplegable la unidad de medida.\n- Número de: en caso de seleccionar esta opción, escriba en la celda de la derecha las unidades (informes, personas, actividades, etc.).\n- Porcentaje. Esta opción únicamente se activa al seleccionar el tipo de formula \"División de Variables\".\n- Pesos ($).\n- Otra: en caso de seleccionar esta opción, escriba en la celda de la derecha la unidad de medida del resultado del indicador.\nEn las opciones de tipo de formula Sumatoria de Dos Variables y Sumatoria de Una Variable, no se despliega la unidad de medida Porcentaje; por lo tanto si requiere esta opción debe seleccionar de la lista desplegable Otra y en la celda de la derecha digitar Porcentaje."]
[null,"VARIABLE 1:",null,"Registre el nombre de la primera variable de la fórmula del indicador."]
[null,"VARIABLE 2:",null,"Registre el nombre de la segunda variable de la fórmula del indicador."]
[null,"FUENTES DE DATOS VARIABLE 1:",null,"Indique las fuentes de datos para obtener los valores de la Variable 1."]
[null,"FUENTES DE DATOS VARIABLE 2:",null,"Indique las fuentes de datos para obtener los valores de la Variable 2."]
[null,"TENDENCIA DEL INDICADOR:",null,"Seleccione \"Decreciente\" cuando se espera que el indicador debe disminuir en el tiempo.\nSeleccione \"Creciente\" en el caso contrario."]
[null,"LÍNEA BASE:",null,"Registre el dato disponible al comenzar la vigencia.\nPor ejemplo: el valor del último año, el promedio histórico, etc.\nSi la tendencia del indicador es Decreciente debe incluir sin excepción el valor de la Línea Base."]
[null,"CÁLCULO DE VALORES ACUMULADOS:",null,"Seleccione de la lista desplegable, si requiere acumular los resultados calculados.\n- Si Aplica: Muestra resultados acumulativos en la franja denominada \"Valor Acumulado\".\n- No Aplica: El valor de la meta no se suma o acumula con el mes inmediatamente anterior."]
[null,"VALOR PROGRAMADO:",null,"Seleccione de la lista desplegable.\nEn caso de seleccionar \"Si Aplica\" en el campo anterior, se calculará el valor programado acumulado de todo el periodo, según la vigencia del indicador.\nSi selecciona \"No aplica\"  en el campo anterior, esta celda se bloquea."]
[null,"FÓRMULA DE CÁLCULO:",null,"Este campo se diligencia automáticamente, según los valores aportados anteriormente."]
[null,"RANGOS DE CUMPLIMIENTO:",null,"Estas celdas son informativas e indican los LÍMITES máximos y mínimos para considerar el grado de cumplimiento de un indicador como satisfactorio, aceptable o insatisfactorio."]
[null,"LÍMITES DE CUMPLIMIENTO DEL INDICADOR:",null,"SATISFACTORIO \nDebe seleccionar de la lista desplegable cualquiera de las opciones: \n-Menor A:\n-Menor o Igual A:\n-Igual A:\n-Mayor o Igual A:\n-Mayor A:\nY a continuación registrar el valor.\n\nACEPTABLE\nEste valor se calcula automáticamente con el diligenciamiento de los valores: Satisfactorio e Insatisfactorio.\n\nINSATISFACTORIO\nDebe seleccionar de la lista desplegable cualquiera de las opciones: \n-Menor A:\n-Menor o Igual A:\n-Igual A:\n-Mayor o Igual A:\n-Mayor A:\nY a continuación registrar el valor.\n\nSOBRE-EJECUCIÓN AUTORIZADA\nSe debe ingresar un valor entre 0% y 20%, ya que por política de la Entidad, no se autorizan sobre-ejecuciones de una meta por encima del 120%."]
[null,"RESPONSABLES:",null,"En esta sección se relacionan los distintos responsables del indicador."]
[null,"DEPENDENCIA:",null,"Seleccione de la lista desplegable la dependencia que lidera el (la) responsable del proceso, encargada de registrar la información en la hoja de vida del indicador."]
[null,"RESPONSABLE DEL PROCESO:",null,"Indique el nombre y cargo / vinculo laboral del (de la) responsable del proceso asociado al indicador."]
[null,"RESPONSABLE DE LA ALIMENTACIÓN Y ANALISIS AL INTERIOR DEL PROCESO:",null,"Indique el nombre y cargo / vinculo laboral del (de la) responsable de la alimentación y análisis al interior de proceso."]
[null,"SEGUIMIENTO AL INDICADOR:",null,"Esta es la sección donde se registran los valores programados por cada periodo, los valores alcanzados por las variables utilizadas para calcular el resultado del indicador en cada período. \nSe calculan automáticamente la ejecución y porcentaje de cumplimiento mensual,  los resultados del indicador y el grado de cumplimiento, en cada período y en lo corrido del año."]
[null,"PROGRAMADO:",null,"Ingrese los valores programados del indicador para cada período. Debe escribir un valor programado para todos los períodos; si en algún período no hay nada programado, diligencie como \"0\" (cero)."]
[null,"VARIABLE 1:",null,"Ingrese el valor de la Variable 1 para cada período. Debe escribir un valor para cada período que haya transcurrido; si en algún período no hay valores medidos para la variable 1, diligencie como \"0\" (cero)."]
[null,"VARIABLE 2:",null,"Este campo se habilitará automáticamente cuando se selecciona la como tipo de formula: \"División de variables\".\nRegistre el valor de la Variable 2 para cada período. Debe escribir un valor para cada período que haya transcurrido; si en algún período no hay valores medidos para la Variable 2,diligencie como \"0\" (cero). "]
[null,"EJECUTADO:",null,"Este campo se diligencia automáticamente. Calcula automáticamente el resultado del indicador para cada período, dependiendo del tipo de fórmula y los valores ingresados de cada variable. Para obtener un resultado, las variables a utilizar para el cálculo deben tener algún valor registrado. "]
[null,"PORCENTAJE DE CUMPLIMIENTO MENSUAL:",null,"Este campo se diligencia automáticamente. Calcula automáticamente la relación entre el resultado del indicador y la meta del indicador para cada período. "]
[null,"EJECUCIÓN ACUMULADA:",null,"Este campo se diligencia automáticamente. Calcula automáticamente el valor ejecutado del indicador para lo que va corrido del año o el cuatrienio, según corresponda."]
[null,"PROGRAMACIÓN ACUMULADA:",null,"Este campo se diligencia automáticamente. Calcula automáticamente el valor programado del indicador para lo que va corrido del año o el cuatrienio, según corresponda."]
[null,"PORCENTAJE DE CUMPLIMIENTO ACUMULADO:",null,"Este campo se diligencia automáticamente. Calcula automáticamente la relación entre la ejecución acumulada y la programación acumulada del indicador."]
[null,"PORCENTAJE DE CUMPLIMIENTO ANUAL O CUATRIENAL (según corresponda):",null,"Este campo se diligencia automáticamente. Calcula automáticamente la relación entre la ejecución acumulada y el valor programado anual o cuatrienal, según corresponda. "]
[null,"GRÁFICO:",null,"En esta sección se grafica automáticamente el grado de cumplimiento anual o cuatrienal (según corresponda) del indicador para cada período, con el fin de facilitar el análisis."]
[null,"MEJORA CONTINUA:",null,"En esta sección se analizan los resultados alcanzados y se propone correcciones o acciones de mejora."]
[null,"PERÍODO - RESUMEN RESULTADOS:",null,"Este campo se diligencia automáticamente. Carga el periodo (mes) y el resumen de resultados de la sección \"Seguimiento al Indicador\". "]
[null,"ANÁLISIS:",null,"Para cada período, explique cualitativamente el resultado alcanzado por el indicador y el grado de cumplimiento de las metas.se debe explicar el detalle que soporta el valor alcanzado por el indicador en el periodo. Este campo debe ser diligenciado sin excepción."]
[null,"CORRECIONES Y ACCIONES DE MEJORA:",null,"En caso en que no se haya cumplido la meta programada, en este campo se debe ingresar las acciones específicas que se tomarán para garantizar el cumplimiento de la meta u otras acciones que se planeen realizar para mejorar la gestión. \nEn el caso en que se haya cumplido la meta del periodo; este campo es opcional."]
[null,"CONTROL DE MODIFICACIONES AL INDICADOR:",null,"En esta sección se registran los cambios realizados a la estructura del indicador; es decir, modificación en la  magnitud, reprogramaciones durante la vigencia. \n\nNota: La trazabilidad de las modificaciones al Indicador, que se generen como consecuencia de los cambios aquí señalados, corresponderá a la vigencia a la cual haga referencia dicho Indicador. Es decir, si un Indicador tiene vigencia anual, las modificaciones de cada anualidad iniciarán en 1, y sólo se registrarán modificaciones consecutivas que se hayan generado durante la misma vigencia."]
[null,"MODIFICACIÓN No.:",null,"Escriba el número consecutivo de cada modificación, iniciando en 1 para la primera, y así sucesivamente."]
[null,"FECHA:",null,"Escriba la fecha de la modificación."]
[null,"DESCRIPCIÓN DE LA MODIFICACIÓN:",null,"Describa todos los cambios realizados en la modificación."]
[null,"MOTIVO DE LA MODIFICACIÓN:",null,"Escriba el motivo de la modificación."]
[null,"Nota: Si este documento se encuentra impreso se considera Copia no Controlada. La versión vigente está  publicada en el sitio web del Instituto Distrital de la Gestión del Riesgo y Cambio Climático."]

{"sheet":"Hoja3","index":2,"n_rows":33,"n_cols":33,"rows_kept":33,"cut":false,"hidden":true,"merged":[]}
["Proceso","Tipología de proceso","Código de proceso","Instrumento de planeación","Tipología de indicador","Periodicidad","Tipo de fórmula","Sumatoria_de_Una_Variable","División_de_Variables","Sumatoria_de_Dos_Variables","Tendencia del Indicador","Cálculo meta acumulada","Comparativos","Fecha de Corte","Períodos",{"$f":"YEAR(TODAY())","v":2024},null,null,null,null,null,null,null,null,null,null,null,null,null,null,null,"Dependencias","Periodo de Creación del Indicador"]
["DE Direccionamiento Estratégico","Estratégico","01","Plan de Acción Institucional PAI","Eficacia","Mensual","Sumatoria_de_Una_Variable","Número de","Porcentaje","Número de","Creciente","Si Aplica","Menor A:","Enero","Ene","Feb","Mar","Abr","May","Jun","Jul","Ago","Sep","Oct","Nov","Dic"," "," "," "," "," ","Dirección General","2024-01-01"]
["CE Comunicación e Información Pública","Estratégico","02","Plan Estratégico Institucional PEI","Eficiencia","Trimestral","División_de_Variables","Pesos ($)","Número de","Pesos ($)","Decreciente","No Aplica","Menor o Igual A:","Febrero","2024 T1","2024 T2","2024 T3","2024 T4","2025 T1","2025 T2","2025 T3","2025 T4","2026 T1","2026 T2","2026 T3","2026 T4","2027 T1","2027 T2","2027 T3","2027 T4","2028 T1","Oficina Jurídica","2024-04-01"]
["CI Conocimiento e Innovación","Estratégico","03","Productos, Metas y Resultados - PMR","Efectividad","Semestral","Sumatoria_de_Dos_Variables","Otra","Otra","Otra",null,null,"Igual A:","Marzo","2024 S1","2024 S2","2025 S1","2025 S2","2026 S1","2026 S2","2027 S1","2027 S2","2028 S1","2028 S2","2029 S1","2029 S2","2030 S1","2030 S2","2031 S1","2031 S2","2032 S1","Oficina Asesora de Planeación","2024-07-01"]
["TI Tecnologías de la Información y las Comunicaciones","Estratégico","04","Sistema de Gestión de Calidad",null,"Anual","Tasa_de_Variación_Creciente",null,null,null,null,null,"Mayor o Igual A:","1er Trimestre 2024",2024,2025,2026,2027,2028,2029,2030,2031,2032,2033,2034,2035,2036,2037,2038,2039,2040,"Oficina de Control Interno","2024-10-01"]
["TH Gestión del Talento Humano","Estratégico","05","Sistema de Gestión de Seguridad y Salud en el Trabajo",null,null,"Tasa_de_Variación_Decreciente",null,null,null,null,null,"Mayor A:","1er Trimestre 2025",null,null,null,null,null,null,null,null,null,null,null,null,null,null,null,null,null,"Oficina de Control Disciplinario Interno","2025-01-01"]
["CR Conocimiento del Riesgo y Efectos del Cambio Climático","Misional","06","Sistema de Gestión de Seguridad de la Información",null,null,null,null,null,null,null,null,null,"1er Trimestre 2026",null,null,null,null,null,null,null,null,null,null,null,null,null,null,null,null,null,"Comunicaciones","2025-04-01"]
["RR Reducción del Riesgo y Adaptación al Cambio Climático","Misional","07","Sistema de Gestión Ambiental",null,null,null,null,null,null,null,null,null,"1er Trimestre 2027",null,null,null,null,null,null,null,null,null,null,null,null,null,null,null,null,null,"Oficina de Tecnologías de la Información y las Comunicaciones","2025-07-01"]
["ME Manejo de Emergencias y Desastres","Misional","08","Modelo Integrado de Planeación y Gestión - MIPG",null,null,null,null,null,null,null,null,null,"1er Trimestre 2028",null,null,null,null,null,null,null,null,null,null,null,null,null,null,null,null,null,"Subdirección Corporativa","2025-10-01"]
["GJ Gestión Jurídica","De apoyo","09","Proyecto de Inversión",null,null,null,null,null,null,null,null,null,"Abril",null,null,null,null,null,null,null,null,null,null,null,null,null,null,null,null,null,"Subdirección de Reducción del Riesgo y Adaptación al Cambio Climático","2026-01-01"]
["GC Gestión Contractual","De apoyo","10","Plan Estratégico de Seguridad Vial - PESV",null,null,null,null,null,null,null,null,null,"Mayo",null,null,null,null,null,null,null,null,null,null,null,null,null,null,null,null,null,"Subdirección de Análisis de Riesgos y Efectos del Cambio Climático","2026-04-01"]
["GD Gestión Documental","De apoyo","11","Políticas Públicas Distritales",null,null,null,null,null,null,null,null,null,"Junio",null,null,null,null,null,null,null,null,null,null,null,null,null,null,null,null,null,"Subdirección de Manejo de Emergencias y Desastres","2026-07-01"]
["GA Gestión Administrativa","De apoyo","12","Plan de Ordenamiento Territorial - POT",null,null,null,null,null,null,null,null,null,"2do Trimestre 2021",null,null,null,null,null,null,null,null,null,null,null,null,null,null,null,null,null,null,"2026-10-01"]
["GF Gestión Financiera","De apoyo",null,"Sistema Distrital de Gestión de Riesgos y Cambio Climático - SDGR-CC",null,null,null,null,null,null,null,null,null,"2do Trimestre 2022",null,null,null,null,null,null,null,null,null,null,null,null,null,null,null,null,null,null,"2027-01-01"]
["AC Atención al Ciudadano","De apoyo",null,"Plan Distrital de Desarrollo (PDD) 2024 - 2027",null,null,null,null,null,null,null,null,null,"2do Trimestre 2023",null,null,null,null,null,null,null,null,null,null,null,null,null,null,null,null,null,null,"2027-04-01"]
["CD Control Disciplinario Interno","De Evaluación",null,"Plan Distrital de Gestión del Riesgo de Desastres y del Cambio Climático",null,null,null,null,null,null,null,null,null,"2do Trimestre 2024",null,null,null,null,null,null,null,null,null,null,null,null,null,null,null,null,null,null,"2027-07-01"]
["EI Evaluación Independiente","De Evaluación",null,"Estrategia Distrital para la Respuesta a Emergencias",null,null,null,null,null,null,null,null,null,"2do Trimestre 2025",null,null,null,null,null,null,null,null,null,null,null,null,null,null,null,null,null,null,"2027-10-01"]
[null,null,null,"Estrategia Institucional de Respuesta",null,null,null,null,null,null,null,null,null,"Julio"]
[null,null,null,null,null,null,null,null,null,null,null,null,null,"Agosto"]
["No Aplica",null,null,null,null,null,null,null,null,null,null,null,null,"Septiembre"]
["N.A.",null,null,null,null,null,null,null,null,null,null,null,null,"3er Trimestre 2021"]
[null,null,null,null,null,null,null,null,null,null,null,null,null,"3er Trimestre 2022"]
[null,null,null,null,null,null,null,null,null,null,null,null,null,"3er Trimestre 2023"]
[null,null,null,null,null,null,null,null,null,null,null,null,null,"3er Trimestre 2024"]
[null,null,null,null,null,null,null,null,null,null,null,null,null,"3er Trimestre 2025"]
[null,null,null,null,null,null,null,null,null,null,null,null,null,"Octubre"]
[null,null,null,null,null,null,null,null,null,null,null,null,null,"Noviembre"]
[null,null,null,null,null,null,null,null,null,null,null,null,null,"Diciembre"]
[null,null,null,null,null,null,null,null,null,null,null,null,null,"4to Trimestre 2021"]
[null,null,null,null,null,null,null,null,null,null,null,null,null,"4to Trimestre 2022"]
[null,null,null,null,null,null,null,null,null,null,null,null,null,"4to Trimestre 2023"]
[null,null,null,null,null,null,null,null,null,null,null,null,null,"4to Trimestre 2024"]
[null,null,null,null,null,null,null,null,null,null,null,null,null,"4to Trimestre 2025"]